{"text_format":"1","workbook":"xlsx","n_sheets":11,"sheets":["Instructions","Contents","Business & other details","4.2 Metering - Capex","4.2 Metering - ICT","7.4 Shared Assets","Change log","AER CF","AER NRs","AER lookups","AER ETL"],"not_rendered":{"charts":0,"images":2,"macros":1,"external_links":0,"defined_names":405,"comments":1,"pivot_tables":0},"unopened":[],"bounds":{"document_bytes":16777216,"sheet_cells":100000,"rows_first":2000,"rows_last":500,"rows_between":2000,"halvings":0,"cell_chars":16384,"cell_head_chars":4096},"cells_cut":0,"cells_raw":0,"read":"whole","date_system":"1900"}

{"sheet":"Instructions","index":0,"n_rows":24,"n_cols":4,"rows_kept":24,"cut":false,"hidden":false,"merged":[[1,1,1,4],[2,1,2,4],[3,1,3,4],[4,1,4,4],[5,2,5,4],[18,1,24,1],[18,2,18,4],[13,2,13,4],[16,2,16,4],[7,1,8,1],[7,2,7,3],[8,2,8,4],[10,1,11,1],[10,2,10,3],[11,2,11,4]]}
[]
[null,{"$f":"CONCATENATE(dms_Sector,\" \",dms_Segment,\" \", \"Network Service Provider\")","v":"Electricity Distribution Network Service Provider"}]
[null,"New Historical Data RIN Template"]
[null,{"$f":"CONCATENATE(\"This template is to be used by \",dms_TradingNameFull,\" to fulfil its reporting obligations to the AER.\")","v":"This template is to be used by SA Power Networks to fulfil its reporting obligations to the AER."}]
[null,"INSTRUCTIONS"]
[null,"GENERAL","Complete the Business & other details worksheet before entering data or values in any other worksheets. The Business & other details worksheet is linked to other worksheets within the workbook and automatically generates certain column headings and conditional formatting."]
[]
[null,"CONFIDENTIAL INFORMATION","\nPlease use the macro at the top of each \nworksheet to identify confidential information\nin the confidential workbook. \n\n"]
[null,null,"-Do this by selecting the cell or cells that contain confidential information and then run the CONFIDENTIAL macro. This will format the cells a specific colour that is identified by the AER's database which in turn marks that information as confidential.\n\n-To reverse this, select the cell or cells and run the NON-CONFIDENTIAL macro."]
[]
[null,"PROTECTED (SOCI) INFORMATION","\nPlease use the macro at the top of each \nworksheet to identify information in the \nconfidential workbook that is protected \ninformation under the SOCI Act. All \ninformation marked Protected (SOCI) is also \ndeemed to be confidential information."]
[null,null,"-Do this by selecting the cell or cells that contain protected information and then run the PROTECTED (SOCI) macro. This will format the cells a specific colour that is identified by the AER's database which in turn marks that information as protected..\n\n-To reverse this, select the cell or cells and run the NON-PROTECTED macro."]
[]
[null,"RESPONSES","\nPlease return four (4) files to the AER: \n\n1. A confidential version which must contain a complete set of all responses with confidential information marked using the Mark selection CONFIDENTIAL macro and which has been completed using the locked template file provided by the AER. \n\n2. An actual and an estimate version with confidential information marked using the Mark selection CONFIDENTIAL macro and which has been completed using the locked template file provided by the AER.\n\n3. A public version with confidential information either removed completely or aggregated in some form together with writtten consent to disclose the public version of the response.\n\nUse the drop down box on the Business and other details worksheet to identify the file as either confidential ('consolidated') or public. "]
[]
[]
[null,"ORDER OF MAGNITUDE","\nAll amounts are to be unrounded and reported on a one for one basis: that is 1000 is to be entered as '1000'. \n\n"]
[]
[null,"INPUT / NON-INPUT CELLS"]
[null,null,null,"Yellow = Input cell (mandatory)"]
[null,null,null,"Darker yellow = input cell (mandatory)"]
[null,null,null,"Orange = input cell (if data available)"]
[null,null,null,"Grey = Not applicable/No inputs required"]
[null,null,null,"PLEASE DO NOT ENTER TEXT into cells that require numbers (including 'numbers stored as text')"]

{"sheet":"Contents","index":1,"n_rows":17,"n_cols":5,"rows_kept":17,"cut":false,"hidden":false,"merged":[[7,3,7,4]]}
[null,null,{"$f":"INDEX(dms_Worksheet_List,MATCH(dms_Model,dms_Model_List))","v":"NEW HISTORICAL CATEGORY ANALYSIS"}]
[null,null,{"$f":"INDEX(dms_TradingNameFull_List,MATCH(dms_TradingName,dms_TradingName_List))","v":"SA Power Networks"}]
[null,null,{"$f":"CONCATENATE(\"REGULATORY PERIOD FROM \", FRCP_y1, \" TO \", FRCP_y5)","v":"REGULATORY PERIOD FROM 2025-26 TO 2029-30"}]
[]
[]
[null,null,null,"CONTENTS"]
[]
[null,null,null,"DRAFT ONLY - DO NOT USE FOR SUBMISSION"]
[]
[null,null,null,"TEMPLATE","FINAL RIN - OCTOBER 2023"]
[]
[null,null,null,"SUBMISSION","Business & other details"]
[]
[null,null,null,"ALTERNATIVE CONTROL","4.2 Metering - Capex"]
[null,null,null,null,"4.2 Metering - ICT"]
[]
[null,null,null,"OTHER","7.4 Shared Assets"]

{"sheet":"Business & other details","index":2,"n_rows":77,"n_cols":79,"rows_kept":77,"cut":false,"hidden":false,"merged":[[0,7,2,15],[3,21,3,57],[6,21,6,75],[8,16,8,93],[18,21,18,35],[18,37,18,58],[19,21,19,35],[19,37,19,48],[25,21,25,35],[25,37,25,58],[25,60,25,66],[25,68,25,89],[10,16,10,93],[11,16,11,93],[26,21,26,35],[26,37,26,58],[26,60,26,66],[26,68,26,89],[27,21,27,35],[27,37,27,51],[27,60,27,66],[27,68,27,82],[28,21,28,35],[28,37,28,40],[28,49,28,51],[28,60,28,66],[28,68,28,71],[28,80,28,82],[34,21,34,35],[34,37,34,58],[34,60,34,66],[34,68,34,89],[35,21,35,35],[35,37,35,58],[35,60,35,66],[35,68,35,89],[36,21,36,35],[36,37,36,58],[36,60,36,66],[36,68,36,89],[44,25,44,34],[44,37,44,44],[44,46,44,53],[44,55,44,62],[44,64,44,71],[44,73,44,80],[45,37,45,44],[45,46,45,53],[45,55,45,62],[45,64,45,71],[45,73,45,80],[46,37,46,44],[46,46,46,53],[46,55,46,62],[46,64,46,71],[46,73,46,80],[48,25,48,34],[48,37,48,44],[48,46,48,53],[48,55,48,62],[48,64,48,71],[48,73,48,80],[49,37,49,44],[49,46,49,53],[49,55,49,62],[49,64,49,71],[49,73,49,80],[50,37,50,44],[50,46,50,53],[50,55,50,62],[50,64,50,71],[50,73,50,80],[52,25,52,34],[52,37,52,44],[52,46,52,53],[52,55,52,62],[52,64,52,71],[52,73,52,80],[53,37,53,44],[53,46,53,53],[53,55,53,62],[53,64,53,71],[53,73,53,80],[54,37,54,44],[54,46,54,53],[54,55,54,62],[54,64,54,71],[54,73,54,80],[56,25,56,34],[56,37,56,44],[58,25,58,34],[58,37,58,44],[64,25,64,34],[64,37,64,52],[72,25,74,34],[72,37,74,81],[76,25,76,34],[76,37,76,52],[66,25,66,34],[66,37,66,52],[68,25,68,34],[68,37,68,52],[70,25,70,34],[70,37,70,52]]}
[null,null,null,null,null,null,null,null,null,null,null,null,null,null,null,null,null,null,null,null,null,{"$f":"INDEX(dms_Worksheet_List,MATCH(dms_Model,dms_Model_List))","v":"NEW HISTORICAL CATEGORY ANALYSIS"}]
[null,null,null,null,null,null,null,null,null,null,null,null,null,null,null,null,null,null,null,null,null,{"$f":"INDEX(dms_TradingNameFull_List,MATCH(dms_TradingName,dms_TradingName_List))","v":"SA Power Networks"}]
[null,null,null,null,null,null,null,null,null,null,null,null,null,null,null,null,null,null,null,null,null,{"$f":"CONCATENATE(\"REGULATORY PERIOD FROM \", FRCP_y1, \" TO \", FRCP_y5)","v":"REGULATORY PERIOD FROM 2025-26 TO 2029-30"}]
[null,null,null,null,null,null,null,null,null,null,null,null,null,null,null,null,null,null,null,null,null,"BUSINESS & OTHER DETAILS"]
[]
[null,null,null,null,null,null,null,null,null,null,null,null,null,null,null,null,null,null,null,null,null,"INSTRUCTIONS"]
[null,null,null,null,null,null,null,null,null,null,null,null,null,null,null,null,null,null,null,null,null,"Complete the following business details regulatory template before entering data or values in any other regulatory template. This regulatory template is linked to other cells within the spreadsheet and automatically generates column headings and conditional formatting to distinguish business specific input and non-input cells. "]
[]
[null,null,null,null,null,null,null,null,null,null,null,null,null,null,null,null,"SUBMISSION PARTICULARS INPUT SHEET"]
[]
[null,null,null,null,null,null,null,null,null,null,null,null,null,null,null,null,"DRAFT TEMPLATE ONLY"]
[null,null,null,null,null,null,null,null,null,null,null,null,null,null,null,null,"DO NOT USE FOR SUBMISSIONS"]
[]
[]
[null,null,null,null,null,null,null,null,null,null,null,null,null,null,null,null,null,null,null,null,null,"ENTITY DETAILS"]
[]
[null,null,null,null,null,null,null,null,null,null,null,null,null,null,null,null,null,null,null,null,null,"Business Name"]
[]
[null,null,null,null,null,null,null,null,null,null,null,null,null,null,null,null,null,null,null,null,null,"Short name",null,null,null,null,null,null,null,null,null,null,null,null,null,null,null,"SA Power Networks"]
[null,null,null,null,null,null,null,null,null,null,null,null,null,null,null,null,null,null,null,null,null,"ACN/ABN",null,null,null,null,null,null,null,null,null,null,null,null,null,null,null,{"$f":"INDEX(dms_ABN_List,MATCH(dms_TradingName,dms_TradingName_List))","v":13332330749}]
[]
[]
[]
[null,null,null,null,null,null,null,null,null,null,null,null,null,null,null,null,null,null,null,null,null,"Business Address",null,null,null,null,null,null,null,null,null,null,null,null,null,null,null,null,null,null,null,null,null,null,null,null,null,null,null,null,null,null,null,null,null,null,null,null,null,null,null,null,null,null,null,null,null,null,"Postal Address"]
[]
[null,null,null,null,null,null,null,null,null,null,null,null,null,null,null,null,null,null,null,null,null,"Address 1",null,null,null,null,null,null,null,null,null,null,null,null,null,null,null,{"$f":"INDEX(dms_Addr1_List,MATCH(dms_TradingName,dms_TradingName_List))","v":"1 Anzac Highway"},null,null,null,null,null,null,null,null,null,null,null,null,null,null,null,null,null,null,null,null,null,null,"Address 1",null,null,null,null,null,null,null,{"$f":"INDEX(dms_PAddr1_List,MATCH(dms_TradingName,dms_TradingName_List))","v":"GPO Box 77"}]
[null,null,null,null,null,null,null,null,null,null,null,null,null,null,null,null,null,null,null,null,null,"Address 2",null,null,null,null,null,null,null,null,null,null,null,null,null,null,null,{"$f":"IF(ISBLANK(INDEX(dms_Addr2_List,MATCH(dms_TradingName,dms_TradingName_List))),\"\",(INDEX(dms_Addr2_List,MATCH(dms_TradingName,dms_TradingName_List))))","v":""},null,null,null,null,null,null,null,null,null,null,null,null,null,null,null,null,null,null,null,null,null,null,"Address 2",null,null,null,null,null,null,null,{"$f":"IF(ISBLANK(INDEX(dms_PAddr2_List,MATCH(dms_TradingName,dms_TradingName_List))),\"\",(INDEX(dms_PAddr2_List,MATCH(dms_TradingName,dms_TradingName_List))))","v":""}]
[null,null,null,null,null,null,null,null,null,null,null,null,null,null,null,null,null,null,null,null,null,"Suburb",null,null,null,null,null,null,null,null,null,null,null,null,null,null,null,{"$f":"INDEX(dms_Suburb_List,MATCH(dms_TradingName,dms_TradingName_List))","v":"KESWICK"},null,null,null,null,null,null,null,null,null,null,null,null,null,null,null,null,null,null,null,null,null,null,"Suburb",null,null,null,null,null,null,null,{"$f":"INDEX(dms_PSuburb_List,MATCH(dms_TradingName,dms_TradingName_List))","v":"ADELAIDE"}]
[null,null,null,null,null,null,null,null,null,null,null,null,null,null,null,null,null,null,null,null,null,"State",null,null,null,null,null,null,null,null,null,null,null,null,null,null,null,{"$f":"INDEX(dms_State_List,MATCH(dms_TradingName,dms_TradingName_List))","v":"SA"},null,null,null,null,null,null,null,null,null,"Post code",null,null,null,null,null,null,null,null,null,null,null,null,"State",null,null,null,null,null,null,null,{"$f":"INDEX(dms_PState_List,MATCH(dms_TradingName,dms_TradingName_List))","v":"SA"},null,null,null,null,null,null,null,null,null,"Post code"]
[]
[null,null,null,null,null,null,null,null,null,null,null,null,null,null,null,null,null,null,null,null,null,null,null,null,null,null,null,null,null,null,null,null,null,null,null,null,null,null,null,null,null,null,null,null,null,null,null,null,null,null,null,null,"`"]
[]
[null,null,null,null,null,null,null,null,null,null,null,null,null,null,null,null,null,null,null,null,null,"Contact Names"]
[]
[null,null,null,null,null,null,null,null,null,null,null,null,null,null,null,null,null,null,null,null,null,"Name",null,null,null,null,null,null,null,null,null,null,null,null,null,null,null,null,null,null,null,null,null,null,null,null,null,null,null,null,null,null,null,null,null,null,null,null,null,null,"Name"]
[null,null,null,null,null,null,null,null,null,null,null,null,null,null,null,null,null,null,null,null,null,"Phone",null,null,null,null,null,null,null,null,null,null,null,null,null,null,null,null,null,null,null,null,null,null,null,null,null,null,null,null,null,null,null,null,null,null,null,null,null,null,"Phone"]
[null,null,null,null,null,null,null,null,null,null,null,null,null,null,null,null,null,null,null,null,null,"Email",null,null,null,null,null,null,null,null,null,null,null,null,null,null,null,null,null,null,null,null,null,null,null,null,null,null,null,null,null,null,null,null,null,null,null,null,null,null,"Email"]
[]
[]
[]
[]
[null,null,null,null,null,null,null,null,null,null,null,null,null,null,null,null,"REGULATORY CONTROL PERIODS"]
[]
[]
[null,null,null,null,null,null,null,null,null,null,null,null,null,null,null,null,null,null,null,null,null,null,null,null,null,"Forthcoming period",null,null,null,null,null,null,null,null,null,null,null,"2025-26",null,null,null,null,null,null,null,null,{"$f":"FRCP_y2","v":"2026-27"},null,null,null,null,null,null,null,null,{"$f":"FRCP_y3","v":"2027-28"},null,null,null,null,null,null,null,null,{"$f":"FRCP_y4","v":"2028-29"},null,null,null,null,null,null,null,null,{"$f":"FRCP_y5","v":"2029-30"}]
[null,null,null,null,null,null,null,null,null,null,null,null,null,null,null,null,null,null,null,null,null,null,null,null,null,null,null,null,null,null,null,null,null,null,null,null,null,{"$f":"FRCP_y6","v":"2030-31"},null,null,null,null,null,null,null,null,{"$f":"FRCP_y7","v":"2031-32"},null,null,null,null,null,null,null,null,{"$f":"FRCP_y8","v":"2032-33"},null,null,null,null,null,null,null,null,{"$f":"FRCP_y9","v":"2033-34"},null,null,null,null,null,null,null,null,{"$f":"FRCP_y10","v":"2034-35"}]
[null,null,null,null,null,null,null,null,null,null,null,null,null,null,null,null,null,null,null,null,null,null,null,null,null,null,null,null,null,null,null,null,null,null,null,null,null,{"$f":"FRCP_y11","v":"2035-36"},null,null,null,null,null,null,null,null,{"$f":"FRCP_y12","v":"2036-37"},null,null,null,null,null,null,null,null,{"$f":"FRCP_y13","v":"2037-38"},null,null,null,null,null,null,null,null,{"$f":"FRCP_y14","v":"2038-39"},null,null,null,null,null,null,null,null,{"$f":"FRCP_y15","v":"2039-40"}]
[]
[null,null,null,null,null,null,null,null,null,null,null,null,null,null,null,null,null,null,null,null,null,null,null,"RESETS",null,"Current period",null,null,null,null,null,null,null,null,null,null,null,{"$f":"CRCP_y1","v":"2020-21"},null,null,null,null,null,null,null,null,{"$f":"CRCP_y2","v":"2021-22"},null,null,null,null,null,null,null,null,{"$f":"CRCP_y3","v":"2022-23"},null,null,null,null,null,null,null,null,{"$f":"CRCP_y4","v":"2023-24"},null,null,null,null,null,null,null,null,{"$f":"CRCP_y5","v":"2024-25"}]
[null,null,null,null,null,null,null,null,null,null,null,null,null,null,null,null,null,null,null,null,null,null,null,null,null,null,null,null,null,null,null,null,null,null,null,null,null,{"$f":"CRCP_y6","v":"2025-26"},null,null,null,null,null,null,null,null,{"$f":"CRCP_y7","v":"2026-27"},null,null,null,null,null,null,null,null,{"$f":"CRCP_y8","v":"2027-28"},null,null,null,null,null,null,null,null,{"$f":"CRCP_y9","v":"2028-29"},null,null,null,null,null,null,null,null,{"$f":"CRCP_y10","v":"2029-30"}]
[null,null,null,null,null,null,null,null,null,null,null,null,null,null,null,null,null,null,null,null,null,null,null,null,null,null,null,null,null,null,null,null,null,null,null,null,null,{"$f":"CRCP_y11","v":"2030-31"},null,null,null,null,null,null,null,null,{"$f":"CRCP_y12","v":"2031-32"},null,null,null,null,null,null,null,null,{"$f":"CRCP_y13","v":"2032-33"},null,null,null,null,null,null,null,null,{"$f":"CRCP_y14","v":"2033-34"},null,null,null,null,null,null,null,null,{"$f":"CRCP_y15","v":"2034-35"}]
[]
[null,null,null,null,null,null,null,null,null,null,null,null,null,null,null,null,null,null,null,null,null,null,null,null,null,"Previous period",null,null,null,null,null,null,null,null,null,null,null,{"$f":"PRCP_y1","v":"2015-16"},null,null,null,null,null,null,null,null,{"$f":"PRCP_y2","v":"2016-17"},null,null,null,null,null,null,null,null,{"$f":"PRCP_y3","v":"2017-18"},null,null,null,null,null,null,null,null,{"$f":"PRCP_y4","v":"2018-19"},null,null,null,null,null,null,null,null,{"$f":"PRCP_y5","v":"2019-20"}]
[null,null,null,null,null,null,null,null,null,null,null,null,null,null,null,null,null,null,null,null,null,null,null,null,null,null,null,null,null,null,null,null,null,null,null,null,null,{"$f":"PRCP_y6","v":"2020-21"},null,null,null,null,null,null,null,null,{"$f":"PRCP_y7","v":"2021-22"},null,null,null,null,null,null,null,null,{"$f":"PRCP_y8","v":"2022-23"},null,null,null,null,null,null,null,null,{"$f":"PRCP_y9","v":"2023-24"},null,null,null,null,null,null,null,null,{"$f":"PRCP_y10","v":"2024-25"}]
[null,null,null,null,null,null,null,null,null,null,null,null,null,null,null,null,null,null,null,null,null,null,null,null,null,null,null,null,null,null,null,null,null,null,null,null,null,{"$f":"PRCP_y11","v":"2025-26"},null,null,null,null,null,null,null,null,{"$f":"PRCP_y12","v":"2026-27"},null,null,null,null,null,null,null,null,{"$f":"PRCP_y13","v":"2027-28"},null,null,null,null,null,null,null,null,{"$f":"PRCP_y14","v":"2028-29"},null,null,null,null,null,null,null,null,{"$f":"PRCP_y15","v":"2029-30"}]
[]
[null,null,null,null,null,null,null,null,null,null,null,null,null,null,null,null,null,null,null,null,null,null,null,"HISTORICAL",null,"Commencing year",null,null,null,null,null,null,null,null,null,null,null,"2014-15"]
[null,null,null,null,null,null,null,null,null,null,null,null,null,null,null,null,null,null,null,null,null,null,null,"DATA"]
[null,null,null,null,null,null,null,null,null,null,null,null,null,null,null,null,null,null,null,null,null,null,null,null,null,"Final year",null,null,null,null,null,null,null,null,null,null,null,"2022-23"]
[]
[]
[]
[null,null,null,null,null,null,null,null,null,null,null,null,null,null,null,null,"SUBMISSION DETAILS"]
[]
[null,null,null,null,null,null,null,null,null,null,null,null,null,null,null,null,null,null,null,null,null,null,null,null,null,"RIN type",null,null,null,null,null,null,null,null,null,null,null,{"$f":"INDIRECT(dms_Model)","v":"Category Analysis"}]
[]
[null,null,null,null,null,null,null,null,null,null,null,null,null,null,null,null,null,null,null,null,null,null,null,null,null,"Source",null,null,null,null,null,null,null,null,null,null,null,"Regulatory proposal"]
[]
[null,null,null,null,null,null,null,null,null,null,null,null,null,null,null,null,null,null,null,null,null,null,null,"THIS FILE",null,"Data Quality",null,null,null,null,null,null,null,null,null,null,null,"Consolidated"]
[]
[null,null,null,null,null,null,null,null,null,null,null,null,null,null,null,null,null,null,null,null,null,null,null,null,null,"Confidentiality Status",null,null,null,null,null,null,null,null,null,null,null,"Public"]
[]
[null,null,null,null,null,null,null,null,null,null,null,null,null,null,null,null,null,null,null,null,null,null,null,null,null,"Amended RIN \nAmendment Reason",null,null,null,null,null,null,null,null,null,null,null,"."]
[]
[]
[]
[null,null,null,null,null,null,null,null,null,null,null,null,null,null,null,null,null,null,null,null,null,null,null,null,null,"Submission Date",null,null,null,null,null,null,null,null,null,null,null,"2024-01-31",null,null,null,null,null,null,null,null,null,null,null,null,null,null,null,null,null,"Please enter date this file submitted to AER"]

{"sheet":"4.2 Metering - Capex","index":3,"n_rows":852,"n_cols":11,"rows_kept":852,"cut":false,"hidden":false,"merged":[[6,1,6,5]]}
[null,{"$f":"INDEX(dms_Worksheet_List,MATCH(dms_Model,dms_Model_List))","v":"NEW HISTORICAL CATEGORY ANALYSIS"}]
[null,{"$f":"INDEX(dms_TradingNameFull_List,MATCH(dms_TradingName,dms_TradingName_List))","v":"SA Power Networks"}]
[null,{"$f":"CONCATENATE(\"REGULATORY PERIOD FROM \", FRCP_y1, \" TO \", FRCP_y5)","v":"REGULATORY PERIOD FROM 2025-26 TO 2029-30"}]
[null,"4.2 METERING"]
[null," TEMPLATE DATE - OCTOBER 2023 - FINAL RIN"]
[]
[null,"Table numbering on this worksheet starts at 4.2.4.  Tables have been GROUPED for ease of navigation. There are TWO descriptor tables and THREE data tables on this worksheet. Yellow cells are input cells and may be overwritten if required."]
[]
[]
[null,"Meter type and meter code must match those reported in the Standardised Metering Capex and Opex model"]
[]
[null,"A. METER TYPES"]
[null,"METER TYPE ","METER CODE"]
[]
[]
[]
[]
[]
[]
[]
[]
[]
[]
[]
[]
[]
[]
[]
[]
[]
[]
[]
[]
[]
[]
[]
[]
[]
[]
[]
[]
[]
[]
[]
[]
[]
[]
[]
[]
[]
[]
[]
[]
[]
[]
[]
[]
[]
[]
[]
[]
[]
[]
[]
[]
[null,"Meter activities must match those reported in the Standardised Metering Capex and Opex model"]
[]
[null,"B. METER ACTIONS"]
[null,"ACTION NAME"]
[null,"New Meter Installations"]
[null,"Refurbished meters"]
[null,"Replacements - End of life"]
[null,"Replacements - Failures and faults"]
[]
[]
[]
[]
[]
[]
[null,"Abolishments"]
[]
[]
[null,"4.2.4 - METERING CAPEX"]
[null,null,"EXPENDITURE \n$"]
[null,"PROJECT NAME",{"$f":"dms_y1","v":"2014-15"},{"$f":"dms_y2","v":"2015-16"},{"$f":"dms_y3","v":"2016-17"},{"$f":"dms_y4","v":"2017-18"},{"$f":"dms_y5","v":"2018-19"},{"$f":"dms_y6","v":"2019-20"},{"$f":"dms_y7","v":"2020-21"},{"$f":"dms_y8","v":"2021-22"},{"$f":"dms_y9","v":"2022-23"}]
[null,"A. METER RELATED COSTS"]
[]
[]
[]
[]
[]
[]
[]
[]
[]
[]
[]
[]
[]
[]
[]
[]
[]
[]
[]
[]
[null,"Total",{"$f":"SUM(C87:C106)","v":0},0,0,0,0,0,0,null,0]
[]
[null,"B. ASSET DISPOSAL INCOME ( income from disposal of meters)"]
[null,null,"EXPENDITURE \n$"]
[null,"METER TYPE",{"$f":"dms_y1","v":"2014-15"},{"$f":"dms_y2","v":"2015-16"},{"$f":"dms_y3","v":"2016-17"},{"$f":"dms_y4","v":"2017-18"},{"$f":"dms_y5","v":"2018-19"},{"$f":"dms_y6","v":"2019-20"},{"$f":"dms_y7","v":"2020-21"},{"$f":"dms_y8","v":"2021-22"},{"$f":"dms_y9","v":"2022-23"}]
[null,{"$f":"IF(ISBLANK(B14),\"\",B14)","v":""}]
[null,{"$f":"IF(ISBLANK(B15),\"\",B15)","v":""}]
[null,""]
[null,""]
[null,""]
[null,""]
[null,""]
[null,""]
[null,""]
[null,""]
[null,""]
[null,""]
[null,""]
[null,""]
[null,""]
[null,""]
[null,""]
[null,""]
[null,""]
[null,""]
[null,""]
[null,""]
[null,""]
[null,""]
[null,""]
[null,""]
[null,""]
[null,""]
[null,""]
[null,""]
[null,""]
[null,""]
[null,""]
[null,""]
[null,""]
[null,""]
[null,""]
[null,""]
[null,""]
[null,""]
[null,""]
[null,""]
[null,""]
[null,""]
[null,""]
[null,""]
[null,""]
[null,""]
[null,""]
[null,""]
[null,"Total",{"$f":"SUM(C112:C161)","v":0},0,0,0,0,0,0,null,0]
[]
[]
[null,"C. CAPITAL CONTRIBUTIONS"]
[null,null,"EXPENDITURE \n$"]
[null," ",{"$f":"dms_y1","v":"2014-15"},{"$f":"dms_y2","v":"2015-16"},{"$f":"dms_y3","v":"2016-17"},{"$f":"dms_y4","v":"2017-18"},{"$f":"dms_y5","v":"2018-19"},{"$f":"dms_y6","v":"2019-20"},{"$f":"dms_y7","v":"2020-21"},{"$f":"dms_y8","v":"2021-22"},{"$f":"dms_y9","v":"2022-23"}]
[]
[]
[]
[]
[]
[]
[]
[]
[]
[]
[]
[]
[]
[]
[]
[]
[]
[]
[]
[]
[null,"Total",{"$f":"SUM(C168:C187)","v":0},0,0,0,0,0,0,null,0]
[]
[]
[]
[null,"4.2.5 - METER POPULATION - at end of year"]
[null,null,"VOLUMES"]
[null,"METER TYPE",{"$f":"dms_y1","v":"2014-15"},{"$f":"dms_y2","v":"2015-16"},{"$f":"dms_y3","v":"2016-17"},{"$f":"dms_y4","v":"2017-18"},{"$f":"dms_y5","v":"2018-19"},{"$f":"dms_y6","v":"2019-20"},{"$f":"dms_y7","v":"2020-21"},{"$f":"dms_y8","v":"2021-22"},{"$f":"dms_y9","v":"2022-23"}]
[null,{"$f":"IF(ISBLANK(B14),\"\",B14)","v":""}]
[null,""]
[null,""]
[null,""]
[null,""]
[null,""]
[null,""]
[null,""]
[null,""]
[null,""]
[null,""]
[null,""]
[null,""]
[null,""]
[null,""]
[null,""]
[null,""]
[null,""]
[null,""]
[null,""]
[null,""]
[null,""]
[null,""]
[null,""]
[null,""]
[null,""]
[null,""]
[null,""]
[null,""]
[null,""]
[null,""]
[null,""]
[null,{"$f":"IF(ISBLANK(B46),\"\",B46)","v":""}]
[null,""]
[null,""]
[null,""]
[null,""]
[null,""]
[null,""]
[null,""]
[null,""]
[null,""]
[null,""]
[null,""]
[null,""]
[null,""]
[null,""]
[null,""]
[null,""]
[null,""]
[null,"Total",{"$f":"SUM(C195:C244)","v":0},{"$f":"SUM(D195:D244)","v":0},0,0,0,0,0,null,0]
[]
[]
[null,"4.2.6 - METER ACTIONS BY METER TYPE"]
[null,null,"VOLUMES"]
[null,"METER TYPE",{"$f":"dms_y1","v":"2014-15"},{"$f":"dms_y2","v":"2015-16"},{"$f":"dms_y3","v":"2016-17"},{"$f":"dms_y4","v":"2017-18"},{"$f":"dms_y5","v":"2018-19"},{"$f":"dms_y6","v":"2019-20"},{"$f":"dms_y7","v":"2020-21"},{"$f":"dms_y8","v":"2021-22"},{"$f":"dms_y9","v":"2022-23"}]
[null,"A. NEW METER INSTALLATIONS - GROWTH"]
[null,{"$f":"IF(ISBLANK(B14),\"\",B14)","v":""}]
[null,""]
[null,""]
[null,""]
[null,""]
[null,""]
[null,""]
[null,""]
[null,""]
[null,""]
[null,""]
[null,""]
[null,""]
[null,""]
[null,""]
[null,""]
[null,""]
[null,""]
[null,""]
[null,""]
[null,""]
[null,""]
[null,""]
[null,""]
[null,""]
[null,""]
[null,""]
[null,""]
[null,""]
[null,""]
[null,""]
[null,""]
[null,{"$f":"IF(ISBLANK(B46),\"\",B46)","v":""}]
[null,""]
[null,""]
[null,""]
[null,""]
[null,""]
[null,""]
[null,""]
[null,""]
[null,""]
[null,""]
[null,""]
[null,""]
[null,""]
[null,""]
[null,""]
[null,""]
[null,""]
[null,"Total",{"$f":"SUM(C252:C301)","v":0},{"$f":"SUM(D252:D301)","v":0},0,0,0,0,0,null,0]
[]
[null,null,"VOLUMES"]
[null,"METER TYPE",{"$f":"dms_y1","v":"2014-15"},{"$f":"dms_y2","v":"2015-16"},{"$f":"dms_y3","v":"2016-17"},{"$f":"dms_y4","v":"2017-18"},{"$f":"dms_y5","v":"2018-19"},{"$f":"dms_y6","v":"2019-20"},{"$f":"dms_y7","v":"2020-21"},{"$f":"dms_y8","v":"2021-22"},{"$f":"dms_y9","v":"2022-23"}]
[null,"B. REFURBISHED METERS"]
[null,{"$f":"IF(ISBLANK(B14),\"\",B14)","v":""}]
[null,""]
[null,""]
[null,""]
[null,""]
[null,""]
[null,""]
[null,""]
[null,""]
[null,""]
[null,""]
[null,""]
[null,""]
[null,""]
[null,""]
[null,""]
[null,""]
[null,""]
[null,""]
[null,""]
[null,""]
[null,""]
[null,""]
[null,""]
[null,""]
[null,""]
[null,""]
[null,""]
[null,""]
[null,""]
[null,""]
[null,""]
[null,{"$f":"IF(ISBLANK(B46),\"\",B46)","v":""}]
[null,""]
[null,""]
[null,""]
[null,""]
[null,""]
[null,""]
[null,""]
[null,""]
[null,""]
[null,""]
[null,""]
[null,""]
[null,""]
[null,""]
[null,""]
[null,""]
[null,""]
[null,"Total",{"$f":"SUM(C307:C356)","v":0},{"$f":"SUM(D307:D356)","v":0},0,0,0,0,0,null,0]
[]
[null,null,"VOLUMES"]
[null,"METER TYPE",{"$f":"dms_y1","v":"2014-15"},{"$f":"dms_y2","v":"2015-16"},{"$f":"dms_y3","v":"2016-17"},{"$f":"dms_y4","v":"2017-18"},{"$f":"dms_y5","v":"2018-19"},{"$f":"dms_y6","v":"2019-20"},{"$f":"dms_y7","v":"2020-21"},{"$f":"dms_y8","v":"2021-22"},{"$f":"dms_y9","v":"2022-23"}]
[null,"C. REPLACEMENT METERS - END OF LIFE"]
[null,{"$f":"IF(ISBLANK(B14),\"\",B14)","v":""}]
[null,""]
[null,""]
[null,""]
[null,""]
[null,""]
[null,""]
[null,""]
[null,""]
[null,""]
[null,""]
[null,""]
[null,""]
[null,""]
[null,""]
[null,""]
[null,""]
[null,""]
[null,""]
[null,""]
[null,""]
[null,""]
[null,""]
[null,""]
[null,""]
[null,""]
[null,""]
[null,""]
[null,""]
[null,""]
[null,""]
[null,""]
[null,{"$f":"IF(ISBLANK(B46),\"\",B46)","v":""}]
[null,""]
[null,""]
[null,""]
[null,""]
[null,""]
[null,""]
[null,""]
[null,""]
[null,""]
[null,""]
[null,""]
[null,""]
[null,""]
[null,""]
[null,""]
[null,""]
[null,""]
[null,"Total",{"$f":"SUM(C362:C411)","v":0},{"$f":"SUM(D362:D411)","v":0},0,0,0,0,0,null,0]
[]
[null,null,"VOLUMES"]
[null,"METER TYPE",{"$f":"dms_y1","v":"2014-15"},{"$f":"dms_y2","v":"2015-16"},{"$f":"dms_y3","v":"2016-17"},{"$f":"dms_y4","v":"2017-18"},{"$f":"dms_y5","v":"2018-19"},{"$f":"dms_y6","v":"2019-20"},{"$f":"dms_y7","v":"2020-21"},{"$f":"dms_y8","v":"2021-22"},{"$f":"dms_y9","v":"2022-23"}]
[null,"D. REPLACEMENT METERS - FAILURES AND FAULTS"]
[null,{"$f":"IF(ISBLANK(B14),\"\",B14)","v":""}]
[null,""]
[null,""]
[null,""]
[null,""]
[null,""]
[null,""]
[null,""]
[null,""]
[null,""]
[null,""]
[null,""]
[null,""]
[null,""]
[null,""]
[null,""]
[null,""]
[null,""]
[null,""]
[null,""]
[null,""]
[null,""]
[null,""]
[null,""]
[null,""]
[null,""]
[null,""]
[null,""]
[null,""]
[null,""]
[null,""]
[null,""]
[null,{"$f":"IF(ISBLANK(B46),\"\",B46)","v":""}]
[null,""]
[null,""]
[null,""]
[null,""]
[null,""]
[null,""]
[null,""]
[null,""]
[null,""]
[null,""]
[null,""]
[null,""]
[null,""]
[null,""]
[null,""]
[null,""]
[null,""]
[null,"Total",{"$f":"SUM(C417:C466)","v":0},{"$f":"SUM(D417:D466)","v":0},0,0,0,0,0,null,0]
[]
[null,null,"VOLUMES"]
[null,"METER TYPE",{"$f":"dms_y1","v":"2014-15"},{"$f":"dms_y2","v":"2015-16"},{"$f":"dms_y3","v":"2016-17"},{"$f":"dms_y4","v":"2017-18"},{"$f":"dms_y5","v":"2018-19"},{"$f":"dms_y6","v":"2019-20"},{"$f":"dms_y7","v":"2020-21"},{"$f":"dms_y8","v":"2021-22"},{"$f":"dms_y9","v":"2022-23"}]
[null,{"$f":"IF(ISBLANK(B74),\"\",CONCATENATE(\"E. \"&(UPPER(B74))))","v":""}]
[null,{"$f":"IF(ISBLANK(B14),\"\",B14)","v":""}]
[null,""]
[null,""]
[null,""]
[null,""]
[null,""]
[null,""]
[null,""]
[null,""]
[null,""]
[null,""]
[null,""]
[null,""]
[null,""]
[null,""]
[null,""]
[null,""]
[null,""]
[null,""]
[null,""]
[null,""]
[null,""]
[null,""]
[null,""]
[null,""]
[null,""]
[null,""]
[null,""]
[null,""]
[null,""]
[null,""]
[null,""]
[null,{"$f":"IF(ISBLANK(B46),\"\",B46)","v":""}]
[null,""]
[null,""]
[null,""]
[null,""]
[null,""]
[null,""]
[null,""]
[null,""]
[null,""]
[null,""]
[null,""]
[null,""]
[null,""]
[null,""]
[null,""]
[null,""]
[null,""]
[null,"Total",{"$f":"SUM(C472:C521)","v":0},{"$f":"SUM(D472:D521)","v":0},0,0,0,0,0,null,0]
[]
[null,null,"VOLUMES"]
[null,"METER TYPE",{"$f":"dms_y1","v":"2014-15"},{"$f":"dms_y2","v":"2015-16"},{"$f":"dms_y3","v":"2016-17"},{"$f":"dms_y4","v":"2017-18"},{"$f":"dms_y5","v":"2018-19"},{"$f":"dms_y6","v":"2019-20"},{"$f":"dms_y7","v":"2020-21"},{"$f":"dms_y8","v":"2021-22"},{"$f":"dms_y9","v":"2022-23"}]
[null,{"$f":"IF(ISBLANK(B75),\"\",CONCATENATE(\"F. \"&(UPPER(B75))))","v":""}]
[null,{"$f":"IF(ISBLANK(B14),\"\",B14)","v":""}]
[null,""]
[null,""]
[null,""]
[null,""]
[null,""]
[null,""]
[null,""]
[null,""]
[null,""]
[null,""]
[null,""]
[null,""]
[null,""]
[null,""]
[null,""]
[null,""]
[null,""]
[null,""]
[null,""]
[null,""]
[null,""]
[null,""]
[null,""]
[null,""]
[null,""]
[null,""]
[null,""]
[null,""]
[null,""]
[null,""]
[null,""]
[null,{"$f":"IF(ISBLANK(B46),\"\",B46)","v":""}]
[null,""]
[null,""]
[null,""]
[null,""]
[null,""]
[null,""]
[null,""]
[null,""]
[null,""]
[null,""]
[null,""]
[null,""]
[null,""]
[null,""]
[null,""]
[null,""]
[null,""]
[null,"Total",{"$f":"SUM(C527:C576)","v":0},{"$f":"SUM(D527:D576)","v":0},0,0,0,0,0,null,0]
[]
[null,null,"VOLUMES"]
[null,"METER TYPE",{"$f":"dms_y1","v":"2014-15"},{"$f":"dms_y2","v":"2015-16"},{"$f":"dms_y3","v":"2016-17"},{"$f":"dms_y4","v":"2017-18"},{"$f":"dms_y5","v":"2018-19"},{"$f":"dms_y6","v":"2019-20"},{"$f":"dms_y7","v":"2020-21"},{"$f":"dms_y8","v":"2021-22"},{"$f":"dms_y9","v":"2022-23"}]
[null,{"$f":"IF(ISBLANK(B76),\"\",CONCATENATE(\"G. \"&(UPPER(B76))))","v":""}]
[null,{"$f":"IF(ISBLANK(B14),\"\",B14)","v":""}]
[null,""]
[null,""]
[null,""]
[null,""]
[null,""]
[null,""]
[null,""]
[null,""]
[null,""]
[null,""]
[null,""]
[null,""]
[null,""]
[null,""]
[null,""]
[null,""]
[null,""]
[null,""]
[null,""]
[null,""]
[null,""]
[null,""]
[null,""]
[null,""]
[null,""]
[null,""]
[null,""]
[null,""]
[null,""]
[null,""]
[null,""]
[null,{"$f":"IF(ISBLANK(B46),\"\",B46)","v":""}]
[null,""]
[null,""]
[null,""]
[null,""]
[null,""]
[null,""]
[null,""]
[null,""]
[null,""]
[null,""]
[null,""]
[null,""]
[null,""]
[null,""]
[null,""]
[null,""]
[null,""]
[null,"Total",{"$f":"SUM(C582:C631)","v":0},{"$f":"SUM(D582:D631)","v":0},0,0,0,0,0,null,0]
[]
[null,null,"VOLUMES"]
[null,"METER TYPE",{"$f":"dms_y1","v":"2014-15"},{"$f":"dms_y2","v":"2015-16"},{"$f":"dms_y3","v":"2016-17"},{"$f":"dms_y4","v":"2017-18"},{"$f":"dms_y5","v":"2018-19"},{"$f":"dms_y6","v":"2019-20"},{"$f":"dms_y7","v":"2020-21"},{"$f":"dms_y8","v":"2021-22"},{"$f":"dms_y9","v":"2022-23"}]
[null,{"$f":"IF(ISBLANK(B77),\"\",CONCATENATE(\"H. \"&(UPPER(B77))))","v":""}]
[null,{"$f":"IF(ISBLANK(B14),\"\",B14)","v":""}]
[null,""]
[null,""]
[null,""]
[null,""]
[null,""]
[null,""]
[null,""]
[null,""]
[null,""]
[null,""]
[null,""]
[null,""]
[null,""]
[null,""]
[null,""]
[null,""]
[null,""]
[null,""]
[null,""]
[null,""]
[null,""]
[null,""]
[null,""]
[null,""]
[null,""]
[null,""]
[null,""]
[null,""]
[null,""]
[null,""]
[null,""]
[null,{"$f":"IF(ISBLANK(B46),\"\",B46)","v":""}]
[null,""]
[null,""]
[null,""]
[null,""]
[null,""]
[null,""]
[null,""]
[null,""]
[null,""]
[null,""]
[null,""]
[null,""]
[null,""]
[null,""]
[null,""]
[null,""]
[null,""]
[null,"Total",{"$f":"SUM(C637:C686)","v":0},{"$f":"SUM(D637:D686)","v":0},0,0,0,0,0,null,0]
[]
[null,null,"VOLUMES"]
[null,"METER TYPE",{"$f":"dms_y1","v":"2014-15"},{"$f":"dms_y2","v":"2015-16"},{"$f":"dms_y3","v":"2016-17"},{"$f":"dms_y4","v":"2017-18"},{"$f":"dms_y5","v":"2018-19"},{"$f":"dms_y6","v":"2019-20"},{"$f":"dms_y7","v":"2020-21"},{"$f":"dms_y8","v":"2021-22"},{"$f":"dms_y9","v":"2022-23"}]
[null,{"$f":"IF(ISBLANK(B78),\"\",CONCATENATE(\"I. \"&(UPPER(B78))))","v":""}]
[null,{"$f":"IF(ISBLANK(B14),\"\",B14)","v":""}]
[null,""]
[null,""]
[null,""]
[null,""]
[null,""]
[null,""]
[null,""]
[null,""]
[null,""]
[null,""]
[null,""]
[null,""]
[null,""]
[null,""]
[null,""]
[null,""]
[null,""]
[null,""]
[null,""]
[null,""]
[null,""]
[null,""]
[null,""]
[null,""]
[null,""]
[null,""]
[null,""]
[null,""]
[null,""]
[null,""]
[null,""]
[null,{"$f":"IF(ISBLANK(B46),\"\",B46)","v":""}]
[null,""]
[null,""]
[null,""]
[null,""]
[null,""]
[null,""]
[null,""]
[null,""]
[null,""]
[null,""]
[null,""]
[null,""]
[null,""]
[null,""]
[null,""]
[null,""]
[null,""]
[null,"Total",{"$f":"SUM(C692:C741)","v":0},{"$f":"SUM(D692:D741)","v":0},0,0,0,0,0,null,0]
[]
[null,null,"VOLUMES"]
[null,"METER TYPE",{"$f":"dms_y1","v":"2014-15"},{"$f":"dms_y2","v":"2015-16"},{"$f":"dms_y3","v":"2016-17"},{"$f":"dms_y4","v":"2017-18"},{"$f":"dms_y5","v":"2018-19"},{"$f":"dms_y6","v":"2019-20"},{"$f":"dms_y7","v":"2020-21"},{"$f":"dms_y8","v":"2021-22"},{"$f":"dms_y9","v":"2022-23"}]
[null,{"$f":"IF(ISBLANK(B79),\"\",CONCATENATE(\"J. \"&(UPPER(B79))))","v":""}]
[null,{"$f":"IF(ISBLANK(B14),\"\",B14)","v":""}]
[null,""]
[null,""]
[null,""]
[null,""]
[null,""]
[null,""]
[null,""]
[null,""]
[null,""]
[null,""]
[null,""]
[null,""]
[null,""]
[null,""]
[null,""]
[null,""]
[null,""]
[null,""]
[null,""]
[null,""]
[null,""]
[null,""]
[null,""]
[null,""]
[null,""]
[null,""]
[null,""]
[null,""]
[null,""]
[null,""]
[null,""]
[null,{"$f":"IF(ISBLANK(B46),\"\",B46)","v":""}]
[null,""]
[null,""]
[null,""]
[null,""]
[null,""]
[null,""]
[null,""]
[null,""]
[null,""]
[null,""]
[null,""]
[null,""]
[null,""]
[null,""]
[null,""]
[null,""]
[null,""]
[null,"Total",{"$f":"SUM(C747:C796)","v":0},{"$f":"SUM(D747:D796)","v":0},0,0,0,0,0,null,0]
[]
[null,null,"VOLUMES"]
[null,"METER TYPE",{"$f":"dms_y1","v":"2014-15"},{"$f":"dms_y2","v":"2015-16"},{"$f":"dms_y3","v":"2016-17"},{"$f":"dms_y4","v":"2017-18"},{"$f":"dms_y5","v":"2018-19"},{"$f":"dms_y6","v":"2019-20"},{"$f":"dms_y7","v":"2020-21"},{"$f":"dms_y8","v":"2021-22"},{"$f":"dms_y9","v":"2022-23"}]
[null,"K. ABOLISHMENTS"]
[null,{"$f":"IF(ISBLANK(B14),\"\",B14)","v":""}]
[null,""]
[null,""]
[null,""]
[null,""]
[null,""]
[null,""]
[null,""]
[null,""]
[null,""]
[null,""]
[null,""]
[null,""]
[null,""]
[null,""]
[null,""]
[null,""]
[null,""]
[null,""]
[null,""]
[null,""]
[null,""]
[null,""]
[null,""]
[null,""]
[null,""]
[null,""]
[null,""]
[null,""]
[null,""]
[null,""]
[null,""]
[null,{"$f":"IF(ISBLANK(B46),\"\",B46)","v":""}]
[null,""]
[null,""]
[null,""]
[null,""]
[null,""]
[null,""]
[null,""]
[null,""]
[null,""]
[null,""]
[null,""]
[null,""]
[null,""]
[null,""]
[null,""]
[null,""]
[null,""]
[null,"Total",{"$f":"SUM(C802:C851)","v":0},{"$f":"SUM(D802:D851)","v":0},0,0,0,0,0,null,0]

{"sheet":"4.2 Metering - ICT","index":4,"n_rows":133,"n_cols":11,"rows_kept":133,"cut":false,"hidden":false,"merged":[]}
[null,{"$f":"INDEX(dms_Worksheet_List,MATCH(dms_Model,dms_Model_List))","v":"NEW HISTORICAL CATEGORY ANALYSIS"}]
[null,{"$f":"INDEX(dms_TradingNameFull_List,MATCH(dms_TradingName,dms_TradingName_List))","v":"SA Power Networks"}]
[null,{"$f":"CONCATENATE(\"REGULATORY PERIOD FROM \", FRCP_y1, \" TO \", FRCP_y5)","v":"REGULATORY PERIOD FROM 2025-26 TO 2029-30"}]
[null,"4.2 METERING"]
[null," TEMPLATE DATE - OCTOBER 2023 - FINAL RIN"]
[]
[null,"Table numbering on this worksheet starts at 4.2.7. There is ONE descriptor table on this worksheet and TWO data tables. Tables have been GROUPED for ease of navigation."]
[]
[]
[null,"Equipment type must match those reported in the Standardised Metering Capex and Opex model"]
[]
[null,"EQUIPMENT TYPE"]
[null,"EQUIPMENT TYPE"]
[]
[]
[]
[]
[]
[]
[]
[]
[]
[]
[]
[]
[]
[]
[]
[]
[]
[]
[]
[]
[]
[]
[]
[null,"4.2.7 - ICT PROJECTS CAPEX"]
[null,null,"EXPENDITURE \n$"]
[null,"PROJECT NAME",{"$f":"dms_y1","v":"2014-15"},{"$f":"dms_y2","v":"2015-16"},{"$f":"dms_y3","v":"2016-17"},{"$f":"dms_y4","v":"2017-18"},{"$f":"dms_y5","v":"2018-19"},{"$f":"dms_y6","v":"2019-20"},{"$f":"dms_y7","v":"2020-21"},{"$f":"dms_y8","v":"2021-22"},{"$f":"dms_y9","v":"2022-23"}]
[null,"A. COMMUNICATION PROJECTS"]
[]
[]
[]
[]
[]
[]
[]
[]
[]
[]
[]
[]
[]
[]
[]
[]
[]
[]
[]
[]
[null,"Total",{"$f":"SUM(C41:C60)","v":0},0,0,0,0,0,0,null,0]
[null,"B. IT PROJECTS"]
[]
[]
[]
[]
[]
[]
[]
[]
[]
[]
[]
[]
[]
[]
[]
[]
[]
[]
[]
[]
[null,"Total",{"$f":"SUM(C63:C82)","v":0},0,0,0,0,0,0,null,0]
[null,"C. OTHER ICT PROJECTS",null,null,null,"EXPENDITURE \n$"]
[]
[]
[]
[]
[]
[]
[]
[]
[]
[]
[]
[]
[]
[]
[]
[]
[]
[]
[]
[]
[null,"Total",{"$f":"SUM(C85:C104)","v":0},0,0,0,0,0,0,null,0]
[]
[]
[]
[null,"4.2.8 - EQUPMENT POPULATION - at end of year"]
[null,null,"VOLUMES"]
[null,null,{"$f":"dms_y1","v":"2014-15"},{"$f":"dms_y2","v":"2015-16"},{"$f":"dms_y3","v":"2016-17"},{"$f":"dms_y4","v":"2017-18"},{"$f":"dms_y5","v":"2018-19"},{"$f":"dms_y6","v":"2019-20"},{"$f":"dms_y7","v":"2020-21"},{"$f":"dms_y8","v":"2021-22"},{"$f":"dms_y9","v":"2022-23"}]
[]
[null,{"$f":"IF(ISBLANK(B14),\"\",B14)","v":""}]
[null,""]
[null,""]
[null,""]
[null,""]
[null,""]
[null,""]
[null,""]
[null,""]
[null,""]
[null,""]
[null,""]
[null,""]
[null,""]
[null,""]
[null,""]
[null,""]
[null,""]
[null,""]
[null,""]
[null,"Total",{"$f":"SUM(C113:C132)","v":0},0,0,0,0,0,0,null,0]

{"sheet":"7.4 Shared Assets","index":5,"n_rows":84,"n_cols":12,"rows_kept":84,"cut":false,"hidden":false,"merged":[[39,2,39,11],[40,2,40,11],[41,2,41,11],[33,2,33,11],[34,2,34,11],[35,2,35,11],[36,2,36,11],[37,2,37,11],[38,2,38,11],[7,1,8,1],[7,2,8,2],[30,2,30,11],[31,2,31,11],[32,2,32,11]]}
[null,{"$f":"IF(dms_MultiYear_ResponseFlag=\"Yes\",\"REGULATORY REPORTING STATEMENT - HISTORICAL INFORMATION\",INDEX(dms_Worksheet_List,MATCH(dms_Model,dms_Model_List)))","v":"REGULATORY REPORTING STATEMENT - HISTORICAL INFORMATION"}]
[null,{"$f":"INDEX(dms_TradingNameFull_List,MATCH(dms_TradingName,dms_TradingName_List))","v":"SA Power Networks"}]
[null,{"$f":"CONCATENATE(\"REGULATORY PERIOD FROM \", FRCP_y1, \" TO \", FRCP_y5)","v":"REGULATORY PERIOD FROM 2025-26 TO 2029-30"}]
[null,"7.4 SHARED ASSETS"]
[null," TEMPLATE DATE - OCTOBER 2023 - FINAL RIN"]
[]
[null,"7.4.1 - TOTAL UNREGULATED REVENUE EARNED WITH SHARED ASSETS "]
[null,"Name of shared asset unregulated service","Description of shared assets used to provide the service","Shared asset unregulated revenue  \n($0's, nominal)"]
[null,null,null,{"$f":"dms_y1","v":"2014-15"},{"$f":"dms_y2","v":"2015-16"},{"$f":"dms_y3","v":"2016-17"},{"$f":"dms_y4","v":"2017-18"},{"$f":"dms_y5","v":"2018-19"},{"$f":"dms_y6","v":"2019-20"},{"$f":"dms_y7","v":"2020-21"},{"$f":"dms_y8","v":"2021-22"},{"$f":"dms_y9","v":"2022-23"}]
[null,"Fibre Access","Rental of overhead and underground distribution assets for telecommunication services."]
[null,"Pole Rental","Rental of overhead and underground distribution assets for telecommunication services."]
[null,"Duct Space Rental","Rental of underground distribution assets for telecommunication services."]
[null,"Facilities Access","Facilities Access Agreements for access to other assets - e.g. towers, base stations etc"]
[null,"Property Rentals","Rental fees received for lease of properties.",156378,203885,242099,344014,320742,279642,256852,287399,284336]
[null,"Unregulated Services - Vehicle revenue","Unregulated construction and maintenance services provided to external groups, e.g. ElectraNet. Relates specifically to use of regulated heavy vehicles in undertaking work.",2238994,1777373,1425950,1630256,2267809,2927060,2972384,2887387,2962856]
[null,"Unregulated Services - Property/IT revenue","Unregulated construction and maintenance services provided to external groups, e.g. ElectraNet. Relates specifically to use of infrastructure assets of property and IT in undertaking work.",2705963,2662215,4229450,5992930,5327914,6059393,8033791,7165343,7714456]
[null,"HV Test Equipment Hire","Hire of high voltage test equipment by electrical contractors for compliance testing for new subdivisions. Ceased in December 2015, as not cost effective to continue to provide this service.",10800,3660,"                               -  ","                               -  ","                               -  ","                               -  ","                               -  ","                               -  ","                               -  "]
[null,"Training - Overheads revenue only","Electrical related training programs provided to external groups, principally electrical contractors requiring accreditation to work on SA Power Networks' assets. Relates to corporate infrastructure assets e.g. property, IT. Ceases from 2020 as service wil",364435,226591,279638,455770,454364,476594,"                               -  ","                               -  ","                               -  "]
[]
[]
[]
[]
[]
[]
[]
[null,"7.4.2 - SHARED ASSET UNREGULATED SERVICES - APPORTIONMENT METHODOLOGY"]
[null,"Name of shared asset unregulated service for which revenues were apportioned","Apportionment methodology"]
[null,"Unregulated Services - Vehicle revenue","Allocated only transfer costs including a margin for regulated vehicles when used by Enerven."]
[null,"Unregulated Services - Property/IT revenue","Partial internal allocation based on CAM apportionment for property and IT of revenue recived for overheads"]
[null,"Training - Overheads revenue only","Partial internal allocation of the revenue collected for providing training externally, therefore 100% of all overheads haved been allocated."]
[]
[]
[]
[]
[]
[]
[]
[]
[]
[]
[]
[]
[]
[]
[]
[]
[]
[]
[]
[]
[]
[]
[]
[]
[]
[]
[]
[]
[]
[]
[]
[]
[]
[]
[]
[]
[]
[]
[]
[]
[]
[]
[]
[]
[]
[]
[]
[]
[]
[]
[]
[]
[]
[null,null,null,null,null,"EXPENDITURE \n$"]

{"sheet":"Change log","index":6,"n_rows":4,"n_cols":7,"rows_kept":4,"cut":false,"hidden":true,"merged":[]}
[]
["Record of changes"]
[]
["Date change made","Worksheet","Table","Cell","Description of change","Date circulated to NSPs","Circulating email iManage #"]

{"sheet":"AER CF","index":7,"n_rows":76,"n_cols":25,"rows_kept":76,"cut":false,"hidden":true,"merged":[[41,38,41,59],[41,69,41,90],[3,1,3,22],[39,38,39,59],[39,69,39,90],[40,38,40,59],[40,69,40,90]]}
[null,"AER CONDITIONAL FORMATTING"]
[]
[null,"CELLS FLAGED \"Y\" and greyed out will be greyed out in the worksheets."]
[null,"CONDITIONAL FORMATTING MAP"]
[null,null,null,null,null,"=INDEX(dms_CF_3.6.1, MATCH(dms_TradingName,dms_CF_TradingName))=\"Y\"","=INDEX(dms_CF_3.6.5, MATCH(dms_TradingName,dms_CF_TradingName))=\"Y\"","=INDEX(dms_CF_3.6.6.1, MATCH(dms_TradingName,dms_CF_TradingName))=\"Y\"","=INDEX(dms_CF_3.6.6.2, MATCH(dms_TradingName,dms_CF_TradingName))=\"Y\"","=INDEX(dms_CF_3.6.6.3, MATCH(dms_TradingName,dms_CF_TradingName))=\"Y\"","=INDEX(dms_CF_3.6.7.1, MATCH(dms_TradingName,dms_CF_TradingName))=\"Y\"","=INDEX(dms_CF_3.6.7.2, MATCH(dms_TradingName,dms_CF_TradingName))=\"Y\"","=INDEX(dms_CF_3.6.7.3, MATCH(dms_TradingName,dms_CF_TradingName))=\"Y\"","=INDEX(dms_CF_3.6.7.4, MATCH(dms_TradingName,dms_CF_TradingName))=\"Y\"","=INDEX(dms_CF_3.6.8, MATCH(dms_TradingName,dms_CF_TradingName))=\"Y\"","=INDEX(dms_CF_4.1, MATCH(dms_TradingName,dms_CF_TradingName))=\"Y\"","=INDEX(dms_CF_6.8, MATCH(dms_TradingName,dms_CF_TradingName))=\"Y\"","=INDEX(dms_CF_7.12, MATCH(dms_TradingName,dms_CF_TradingName))=\"Y\"","=INDEX(dms_CF_8.1_A, MATCH(dms_TradingName,dms_CF_TradingName))=\"Y\"","=INDEX(dms_CF_8.1_B, MATCH(dms_TradingName,dms_CF_TradingName))=\"Y\"",{"$f":"INDEX(dms_CF_8.1_Neg, MATCH(dms_TradingName,dms_CF_TradingName))=\"Y\"","v":false},"=INDEX(dms_CF_4.4.1_Neg, MATCH(dms_TradingName,dms_CF_TradingName))=\"Y\"",null,null,"=INDEX(dms_CF_F10, MATCH(dms_TradingName,dms_CF_TradingName))=\"Y\""]
[null,"dms_CF_TradingName","JurisdictionList","Sector","Segment","dms_CF_3.6.1","dms_CF_3.6.5","dms_CF_3.6.6.1","dms_CF_3.6.6.2","dms_CF_3.6.6.3","dms_CF_3.6.7.1","dms_CF_3.6.7.2","dms_CF_3.6.7.3","dms_CF_3.6.7.4","dms_CF_3.6.8","dms_CF_4.1","dms_CF_6.8 (set from dms_MAIFI_flag)","dms_CF_7.12","dms_CF_8.1_A  (and 8.4)","dms_CF_8.1_B  (and 8.4)","dms_CF_8.1_Neg  (and 8.4)","dms_CF_4.4.1","dms_CF_MAIFI_flag (set from dms_MAIFI_flag)","9.5 TUOS (set from Jurisdiction)","dms_CF_F10"]
[null,"Amadeus","NT","Gas","Transmission","-","-","-","-","-","-","-","-","-","-","-","-","-","-","-","-","-","-","-","-"]
[null,"APA GasNet","Vic","Gas","Transmission","-","-","-","-","-","-","-","-","-","-","-","-","-","-","-","-","-","-","-","-"]
[null,"Ausgrid","NSW","Electricity","Distribution",null,"Y","N","N","N","N","N","N","Y","N","N",{"$f":"IFERROR(IF(_xlfn.SINGLE(dms_MAIFI_Flag)=\"Yes\",\"N\",\"Y\"),\"Y\")","v":"Y"},"Y","N","Y","Y","N",{"$f":"IFERROR(LEFT(_xlfn.SINGLE(dms_MAIFI_Flag)),\"N\")","v":"N"},{"$f":"IF('AER CF'!$C7=\"Vic\",\"Y\",\"N\")","v":"N"}]
[null,"Ausgrid (Tx Assets)","NSW","Electricity","Distribution",null,"Y","N","N","N","N","N","N","Y","N","N","Y","Y","N","Y","Y","N","N",{"$f":"IF('AER CF'!$C8=\"Vic\",\"Y\",\"N\")","v":"Y"}]
[null,"AusNet (D)","Vic","Electricity","Distribution",null,"N","N",null,null,"N","N","N","N","N","N","Y","N","N","N","Y","N","N",{"$f":"IF('AER CF'!$C9=\"Vic\",\"Y\",\"N\")","v":"N"}]
[null,"AusNet (T)","Vic","Electricity","Transmission",null,"N",null,null,null,"N","N","N","N","N","Y","Y","N","N","N","Y","N","N",{"$f":"IF('AER CF'!$C10=\"Vic\",\"Y\",\"N\")","v":"N"}]
[null,"Australian Distribution Co.","NSW","Electricity","Distribution","N","N","N","N",null,"N","N","N","N","N","N","Y","N","N","N","N","N","N",{"$f":"IF('AER CF'!$C13=\"Vic\",\"Y\",\"N\")","v":"N"}]
[null,"Australian Distribution Co. (Vic)","Vic","Electricity","Distribution","N","N","N","N",null,"N","N","N","N","N","N","Y","N","N","N","N","N","N",{"$f":"IF('AER CF'!$C14=\"Vic\",\"Y\",\"N\")","v":"Y"}]
[null,"CitiPower","Vic","Electricity","Distribution",null,"N","N",null,null,"N","N","N","N","N","N","Y","N","N","N","Y","N","N",{"$f":"IF('AER CF'!$C15=\"Vic\",\"Y\",\"N\")","v":"Y"}]
[null,"Directlink","Qld","Electricity","Transmission",null,"N",null,null,null,"N","N","N","N","N","-","Y","N","N","Y","Y","N","N",{"$f":"IF('AER CF'!$C16=\"Vic\",\"Y\",\"N\")","v":"N"}]
[null,"ElectraNet","SA","Electricity","Transmission",null,"N",null,null,null,"N","N","N","N","N","-","Y","N","N","Y","Y","N","N",{"$f":"IF('AER CF'!$C17=\"Vic\",\"Y\",\"N\")","v":"N"}]
[null,"Endeavour Energy","NSW","Electricity","Distribution",null,"Y","N","Y","Y","N","N","N","Y","N","N","Y","Y","N","Y","Y","Y","N",{"$f":"IF('AER CF'!$C18=\"Vic\",\"Y\",\"N\")","v":"N"}]
[null,"Energex","Qld","Electricity","Distribution",null,"Y","N",null,null,"N","N","N","N","N","N","Y","Y","N","Y","Y","Y","N",{"$f":"IF('AER CF'!$C19=\"Vic\",\"Y\",\"N\")","v":"N"}]
[null,"Ergon Energy","Qld","Electricity","Distribution",null,"Y","N","Y","Y","N","N","N","N","N","N","Y","Y","N","Y","Y","N","N",{"$f":"IF('AER CF'!$C20=\"Vic\",\"Y\",\"N\")","v":"N"}]
[null,"Essential Energy","NSW","Electricity","Distribution",null,"Y","N","Y","Y","N","N","N","Y","N","N","Y","Y","N","Y","Y","N","N",{"$f":"IF('AER CF'!$C21=\"Vic\",\"Y\",\"N\")","v":"N"}]
[null,"Evoenergy Distribution","ACT","Electricity","Distribution",null,"Y","N","Y","Y","Y","Y","N","Y","N","Y","Y","Y","N","Y","Y","N","N",{"$f":"IF('AER CF'!$C22=\"Vic\",\"Y\",\"N\")","v":"N"}]
[null,"Evoenergy Distribution (Tx Assets)","ACT","Electricity","Distribution",null,"Y","N","Y","Y","Y","Y","N","Y","N","Y","Y","Y","N","Y","Y","N","N",{"$f":"IF('AER CF'!$C23=\"Vic\",\"Y\",\"N\")","v":"N"}]
[null,"Jemena Electricity","Vic","Electricity","Distribution",null,"N","N",null,null,"N","N","N","N","N","N","Y","N","N","N","Y","N","N",{"$f":"IF('AER CF'!$C25=\"Vic\",\"Y\",\"N\")","v":"Y"}]
[null,"JGN","Vic","Gas","Distribution","-","-","-","-","-","-","-","-","-","-","-","-","-","-","-","-","-","-","-","-"]
[null,"Murraylink","SA","Electricity","Transmission",null,"N",null,null,null,"N","N","N","N","N","-",{"$f":"IFERROR(IF(_xlfn.SINGLE(dms_MAIFI_Flag)=\"Yes\",\"N\",\"Y\"),\"Y\")","v":"Y"},"N","N","Y","Y","N",{"$f":"IFERROR(LEFT(_xlfn.SINGLE(dms_MAIFI_Flag)),\"N\")","v":"N"},{"$f":"IF('AER CF'!$C26=\"Vic\",\"Y\",\"N\")","v":"N"}]
[null,"Power and Water","NT","Electricity","Distribution",null,"N","N",null,null,"N","Y","N","N","N","Y",{"$f":"IFERROR(IF(_xlfn.SINGLE(dms_MAIFI_Flag)=\"Yes\",\"N\",\"Y\"),\"Y\")","v":"Y"},"Y","Y","Y","Y","N",{"$f":"IFERROR(LEFT(_xlfn.SINGLE(dms_MAIFI_Flag)),\"N\")","v":"N"},{"$f":"IF('AER CF'!$C27=\"Vic\",\"Y\",\"N\")","v":"N"}]
[null,"Powercor Australia","Vic","Electricity","Distribution",null,"N","N",null,null,"N","N","N","N","N","N",{"$f":"IFERROR(IF(_xlfn.SINGLE(dms_MAIFI_Flag)=\"Yes\",\"N\",\"Y\"),\"Y\")","v":"Y"},"N","N","N","Y","N",{"$f":"IFERROR(LEFT(_xlfn.SINGLE(dms_MAIFI_Flag)),\"N\")","v":"N"},{"$f":"IF('AER CF'!$C28=\"Vic\",\"Y\",\"N\")","v":"Y"}]
[null,"Powerlink","Qld","Electricity","Transmission",null,"N",null,null,null,"N","N","N","N","N","-",{"$f":"IFERROR(IF(_xlfn.SINGLE(dms_MAIFI_Flag)=\"Yes\",\"N\",\"Y\"),\"Y\")","v":"Y"},"N","N","Y","Y","N",{"$f":"IFERROR(LEFT(_xlfn.SINGLE(dms_MAIFI_Flag)),\"N\")","v":"N"},{"$f":"IF('AER CF'!$C29=\"Vic\",\"Y\",\"N\")","v":"N"}]
[null,"Roma to Brisbane Pipeline","Qld","Gas","Transmission","-","-","-","-","-","-","-","-","-","-","-","-","-","-","-","-","-","-","-","-"]
[null,"SA Power Networks","SA","Electricity","Distribution",null,"Y","N",null,null,"N","N","N","N","N","N",{"$f":"IFERROR(IF(_xlfn.SINGLE(dms_MAIFI_Flag)=\"Yes\",\"N\",\"Y\"),\"Y\")","v":"Y"},"Y","N","Y","N","N",{"$f":"IFERROR(LEFT(_xlfn.SINGLE(dms_MAIFI_Flag)),\"N\")","v":"N"},{"$f":"IF('AER CF'!$C31=\"Vic\",\"Y\",\"N\")","v":"N"}]
[null,"TasNetworks (D)","Tas","Electricity","Distribution",null,"Y","N",null,null,"N","N","N","N","N","N",{"$f":"IFERROR(IF(_xlfn.SINGLE(dms_MAIFI_Flag)=\"Yes\",\"N\",\"Y\"),\"Y\")","v":"Y"},"Y","N","Y","Y","N",{"$f":"IFERROR(LEFT(_xlfn.SINGLE(dms_MAIFI_Flag)),\"N\")","v":"N"},{"$f":"IF('AER CF'!$C32=\"Vic\",\"Y\",\"N\")","v":"N"}]
[null,"TasNetworks (T)","Tas","Electricity","Transmission",null,"N",null,null,null,"N","N","N","N","N","-",{"$f":"IFERROR(IF(_xlfn.SINGLE(dms_MAIFI_Flag)=\"Yes\",\"N\",\"Y\"),\"Y\")","v":"Y"},"N","N","Y","Y","N",{"$f":"IFERROR(LEFT(_xlfn.SINGLE(dms_MAIFI_Flag)),\"N\")","v":"N"},{"$f":"IF('AER CF'!$C33=\"Vic\",\"Y\",\"N\")","v":"N"}]
[null,"TransGrid","NSW","Electricity","Transmission",null,"N",null,null,null,"N","N","N","N","N","-",{"$f":"IFERROR(IF(_xlfn.SINGLE(dms_MAIFI_Flag)=\"Yes\",\"N\",\"Y\"),\"Y\")","v":"Y"},"N","N","Y","Y","N",{"$f":"IFERROR(LEFT(_xlfn.SINGLE(dms_MAIFI_Flag)),\"N\")","v":"N"},{"$f":"IF('AER CF'!$C34=\"Vic\",\"Y\",\"N\")","v":"N"}]
[null,"United Energy","Vic","Electricity","Distribution",null,"N","N",null,null,"N","N","N","N","N","N",{"$f":"IFERROR(IF(_xlfn.SINGLE(dms_MAIFI_Flag)=\"Yes\",\"N\",\"Y\"),\"Y\")","v":"Y"},"N","N","N","Y","N",{"$f":"IFERROR(LEFT(_xlfn.SINGLE(dms_MAIFI_Flag)),\"N\")","v":"N"},{"$f":"IF('AER CF'!$C35=\"Vic\",\"Y\",\"N\")","v":"Y"}]
[]
[]
[null,"Confidential"]
[null,"Amended"]
[]
[null,"Worksheet 6.2 STPIS reliability"]
[null,"Formula",null,null,null,"Applied to:"]
[]
[null,"=INDEX(dms_CBD_flag,MATCH(dms_TradingName,dms_TradingName_List))=\"NO\"",null,null,null,"$D$11,$D$17,$D$23,$D$33,$D$39,$D$45,$D$55,$D$61,$D$67,$D$77,$D$83,$D$89"]
[null,"=INDEX(dms_Urban_flag,MATCH(dms_TradingName,dms_TradingName_List))=\"NO\"",null,null,null,"$D$12,$D$18,$D$24,$D$56,$D$62,$D$78,$D$68,$D$84"]
[null,"=INDEX(dms_ShortRural_flag,MATCH(dms_TradingName,dms_TradingName_List))=\"NO\"",null,null,null,"$D$13,$D$19,$D$25,$D$57,$D$63,$D$69,$D$79,$D$85"]
[null,"=INDEX(dms_LongRural_flag,MATCH(dms_TradingName,dms_TradingName_List))=\"NO\"",null,null,null,"$D$14,$D$20,$D$26,$D$58,$D$64,$D$65,$D$70,$D$71,$D$80,$D$86"]
[null,"=INDEX(dms_FeederType_5_flag,MATCH(dms_TradingName,dms_TradingName_List))=\"NO\"",null,null,null,"$D$87,$D$81,$D$71,$D$65,$D$59,$D$49,$D$43,$D$37,$D$21,$D$15"]
[null,"=dms_MAIFI_Flag=\"No\"",null,null,null,"$D$55:$D$72"]
[]
[]
[null,"Business & other details"]
[null,"=(INDEX(dms_Model_Span,MATCH(dms_Model,dms_Model_List))>1)"]
[null,"=(INDEX(dms_Model_Span,MATCH(dms_Model,dms_Model_List))=1)"]
[]
[]
[null,"STYLES IN USE"]
[null,"HEADING ONE","dms_1"]
[null,"HEADING TWO","dms_2"]
[null,"HEADING THREE","dms_3"]
[null,"HEADING FOUR","dms_4"]
[null,"HEADING FIVE","dms_5"]
[null,5.1109999999999998,"dms_NUM"]
[null,5.45E-2,"dms_NUM%"]
[null,5.5555000000000003,"dms_NUM3d"]
[null,"Text description","dms_Row_Locked"]
[null,"Text description","dms_Row1"]
[null,"Text description","dms_Row2"]
[null,"Total","dms_T1"]
[null,"Total","dms_T2"]
[null,"EXPENSES","dms_BH"]
[null,2019,"dms_BY1"]
[null,2019,"dms_BY2"]
[null,"VOLUMES","dms_GH"]
[null,2019,"dms_GY1"]
[null,2019,"dms_GY2"]

{"sheet":"AER NRs","index":8,"n_rows":232,"n_cols":16,"rows_kept":232,"cut":false,"hidden":true,"merged":[[4,1,28,1],[32,1,55,1],[33,10,35,10],[33,36,33,57],[33,67,33,88],[34,36,34,57],[34,67,34,88],[35,36,35,57],[35,67,35,88],[36,10,40,10],[44,10,45,10],[65,1,78,1],[84,1,97,1],[100,1,107,1],[110,1,115,1],[118,1,132,1],[195,1,196,1],[199,1,200,1],[208,1,213,1],[135,1,150,1],[152,1,158,1],[160,1,174,1],[176,1,177,1],[179,1,184,1],[191,1,192,1]]}
[null,"AER NAMED RANGES"]
[]
[null,"DROP DOWN SELECTORS USED IN WORKBOOKS"]
[]
[null,"COVER SHEET","dms_DataQuality_List","dms_Confid_status_List"]
[null,null,"-- select --","-- select --"]
[null,null,"Actual","Public"]
[null,null,"Estimate","Confidential"]
[null,null,"Consolidated"]
[]
[]
[null,null,"For all files either AER or business needs to be able to specify the type of submission","For PTRM & RFM templates we must provide a choice in case they change their form of control - otherwise it is drawn from the business specific lookup table above."]
[null,null,"dms_SourceList","dms_FormControl_Choices"]
[null,null,"-- select --","Revenue cap"]
[null,null,"After appeal","Revenue yield"]
[null,null,"Draft decision","Tariff cap"]
[null,null,"Final decision","Weighted average price cap"]
[null,null,"PTRM update 1"]
[null,null,"PTRM update 2"]
[null,null,"PTRM update 3"]
[null,null,"PTRM update 4"]
[null,null,"PTRM update 5"]
[null,null,"PTRM update 6"]
[null,null,"PTRM update 7"]
[null,null,"Reallocated"]
[null,null,"Recast"]
[null,null,"Regulatory proposal"]
[null,null,"Reporting"]
[null,null,"Revised regulatory proposal"]
[]
[]
[null,null,null,null,null,null,null,null,null,null,"This is used to create an image to insert on 6.3 STPIS sheet - not for dropdown lists.",null,null,"GAS"]
[null,"CA & RESET RINS \nDNSP","dms_DNSP_020301_SubstationType","dms_DNSP_020301_ProjectType","dms_DNSP_020301_ProjectTrigger","dms_DNSP_020302_ProjectType","dms_DNSP_020302_ProjectTrigger","dms_STPIS_Exclusion_List","dms_Reason_Interruption","dms_Reason_Interruption_Detailed","Reason for interruption",null,null,"dms_N0205_AssetType"]
[null,null,"Subtransmission substation","New substation establishment","Demand growth","New line on new route - single circuit","Demand growth","Weather","Animal","Animal impact","Animal","Animal impact",null,"Cast Iron"]
[null,null,"Zone substation","Substation upgrade - capacity"," Voltage issues","New line on new route - dual circuit"," Voltage issues","Equipment failure","Asset failure","Animal nesting/burrowing, etc and other",null,"Animal nesting/burrowing, etc and other",null,"PVC"]
[null,null,"Switching station","Substation upgrade - voltage"," Reactive power issue","New line on new route - other"," Reactive power issue","Operational error","Other","Other",null,"Other",null,"Polyamide"]
[null,null,"Other","Other"," Fault level issues","Line rebuild over existing route - single circuit"," Fault level issues","Vegetation","Overloads","LV","Asset failure","LV",null,"High density polyethylene (80)"]
[null,null,null,null," Safety","Line rebuild over existing route - dual circuit"," Net market benefit","Animals","Planned","Distribution substation",null,"Distribution substation",null,"High density polyethylene (100)"]
[null,null,null,null," Environment","Reconductor - Single circuit"," Safety","Third party impacts","Network business","HV",null,"HV",null,"High density polyethylene (250)"]
[null,null,null,null," Other","Reconductor - Dual circuit"," Environment","Transmission failure","Third party","Zone substation",null,"Zone substation",null,"High density polyethylene (575)"]
[null,null,null,null,null,"Reconductor - Other"," Other","Load shedding","Unknown","Subtransmission",null,"Subtransmission",null,"Medium density polyethylene"]
[null,null,null,null,null,"Line upgrade - raising/retensoring",null,"Inter-distributor connection failure","Vegetation","insert description of 'other'","Other","insert description of 'other'",null,"Unprotected steel"]
[null,null,null,null,null,"Line upgrade - voltage upgrade",null,"Other","Weather","Network error","Overloads",null,null,"Protected steel"]
[null,null,null,null,null,"Line upgrade - capacity",null,null,"2 - STPIS Exclusion (3.3)(a)","Switching and protection error","Planned",null,null,"Other"]
[null,null,null,null,null,"String spare circuit",null,null,"3 - STPIS Exclusion (3.3)(a)","Fire","Network business","Network error"]
[null,null,null,null,null,"Other",null,null,"4 - STPIS Exclusion (3.3)(a)","Other",null,"Switching and protection error"]
[null,null,null,null,null,null,null,null,"5 - STPIS Exclusion (3.3)(a)","Dig-in","Third party","Fire"]
[null,null,null,null,null,null,null,null,"6 - STPIS Exclusion (3.3)(a)","Unauthorised access",null,"Other"]
[null,null,null,null,null,null,null,null,"7 - STPIS Exclusion (3.3)(a)","Vehicle impact",null,"Dig-in"]
[null,null,null,null,null,null,null,null,null,"Unknown",null,"Unauthorised access"]
[null,null,null,null,null,null,null,null,null,"Blow-in/Fall-in - NSP responsibility",null,"Vehicle impact"]
[null,null,null,null,null,null,null,null,null,"Grow-in - NSP responsibility","Unknown","Unknown"]
[null,null,null,null,null,null,null,null,null,"Blow-in/Fall-in - Other responsible party","Vegetation","Blow-in/Fall-in - NSP responsibility"]
[null,null,null,null,null,null,null,null,null,"Grow-in - Other responsible party",null,"Grow-in - NSP responsibility"]
[null,null,null,null,null,null,null,null,null,null,null,"Blow-in/Fall-in - Other responsible party"]
[null,null,null,null,null,null,null,null,null,null,null,"Grow-in - Other responsible party"]
[null,null,null,null,null,null,null,null,null,null,"Weather"]
[null,null,null,null,null,null,null,null,null,null,"2 - STPIS Exclusion (3.3)(a)"]
[null,null,null,null,null,null,null,null,null,null,"3 - STPIS Exclusion (3.3)(a)"]
[null,null,null,null,null,null,null,null,null,null,"4 - STPIS Exclusion (3.3)(a)"]
[null,null,null,null,null,null,null,null,null,null,"5 - STPIS Exclusion (3.3)(a)"]
[null,null,null,null,null,null,null,null,null,null,"6 - STPIS Exclusion (3.3)(a)"]
[null,null,null,null,null,null,null,null,null,null,"7 - STPIS Exclusion (3.3)(a)"]
[]
[]
[null,"CA & RESET RINS \nTNSP ","dms_TNSP_0203_SubstationType","dms_TNSP_020301_ProjectType","dms_TNSP_020301_ProjectTrigger","dms_TNSP_020302_ProjectType","dms_TNSP_0203_ProjectTrigger"]
[null,null,"Terminal station","New substation establishment","Demand growth","New line on new route - single circuit","Demand growth"]
[null,null,"Switching station","Capacity upgrade"," Voltage issues","New line on new route - dual circuit"," Voltage issues"]
[null,null,"Transmission substation","Voltage upgrade"," Reactive power issue","New line on new route - other"," Reactive power issue"]
[null,null,"Other","Other"," Fault level issues","Line rebuild over existing route - single circuit"," Fault level issues"]
[null,null,null,null,"Net market benefit","Line rebuild over existing route - dual circuit"," Net market benefit"]
[null,null,null,null," Safety","Reconductor - Single circuit"," Safety"]
[null,null,null,null," Environment","Reconductor - Dual circuit"," Environment"]
[null,null,null,null," Other","Reconductor - Other"," Other"]
[null,null,null,null,null,"Line upgrade - raising/retensoring"]
[null,null,null,null,null,"Line upgrade - voltage upgrade"]
[null,null,null,null,null,"Line upgrade - capacity"]
[null,null,null,null,null,"String spare circuit"]
[null,null,null,null,null,"Other"]
[]
[]
[]
[null,"NAMED RANGES USED IN ETL PROCESS"]
[null,null,null,null,null,null,null,null,null,null,null,null,"GAS ARR & RESET"]
[null,"CA & RESET RINS \nDNSP ONLY","dms_020303_01_UOM","dms_020501_01_UOM","dms_020501_02_UOM","dms_020501_03_UOM","dms_020501_04_UOM","dms_020701_01_UOM","dms_020701_02_UOM","dms_020701_01_Rows","dms_040102_01_UOM","dms_040102_04_UOM","dms_S140101_UOM","dms_S140201_UOM","dms_E050201_UOM","dms_E050202_UOM"]
[null,null,"Circuit line length in km","0's","0's","0's","0's","km","km","Route line length within zone","0's","days","number","number per km","per metre per connection","metres per connection"]
[null,null,"Circuit line length in km","0's","0's","0's","0's","0's","0's","Number of maintenance spans","0's","0's","number","number","per service per connection","number per connection"]
[null,null,"Circuit line length in km","MVA added","MVA added","MVA added","MVA added","km","km","Total length of maintenance spans","0's","$0s","number","number","number per connection","number per connection"]
[null,null,"Circuit line length in km","0's","0's","0's","0's","km","km","Length of vegetation corridors","$0s","0's","km"]
[null,null,"Number","total spend $0s","total spend $0s","total spend $0s","total spend $0s","0's","0's","Average number of trees per maintenance span"]
[null,null,"Number","net circuit km added","net circuit km added","net circuit km added","net circuit km added","years","years","Average frequency of cutting cycle"]
[null,null,"Number","total spend $0s","total spend $0s","total spend $0s","total spend $0s"]
[null,null,null,"net circuit km added","net circuit km added","net circuit km added","net circuit km added"]
[null,null,null,"total spend $0s","total spend $0s","total spend $0s","total spend $0s"]
[null,null,null,"0's",null,"$0s"]
[null,null,null,"0's"]
[null,null,null,"0's"]
[null,null,null,"$0s"]
[]
[]
[null,"CA & RESET RINS \nTNSP ONLY","dms_020701_01_UOM"]
[null,null,"km"]
[null,null,"0's"]
[null,null,"km"]
[null,null,"0's"]
[null,null,"km"]
[null,null,"metres"]
[null,null,"years"]
[]
[]
[null,"CA & RESET RINS \nDNSP & TNSP","dms_020603_01_UOM"]
[null,null,"0's"]
[null,null,"0's"]
[null,null,"0's"]
[null,null,"0's"]
[null,null,"(per cent)"]
[]
[]
[null,"EB & RESET RINS \nDNSP ONLY","dms_030601_01_UOM","dms_030601_02_UOM","dms_030701_01_UOM","dms_030702_01_UOM","dms_030703_01_UOM"]
[null,null,"minutes/customer","minutes/customer","Customer / km","%","km"]
[null,null,"minutes/customer","minutes/customer","MWh/customer","Number of spans"]
[null,null,"interruptions/customer","interruptions/customer","kVA / customer","Number of spans"]
[null,null,"interruptions/customer","interruptions/customer",null,"Number of spans"]
[null,null,null,null,null,"Number of spans"]
[null,null,null,null,null,"Years"]
[null,null,null,null,null,"Years"]
[null,null,null,null,null,"Trees"]
[null,null,null,null,null,"Trees"]
[null,null,null,null,null,"Defects"]
[null,null,null,null,null,"Defects"]
[null,null,null,null,null,"Spans"]
[null,null,null,null,null,"km"]
[null,null,null,null,null,"Spans"]
[]
[null,null,"WHEN INSERTING COVER SHEET INTO A TNSP FILE - APPLY THESE NAMED RANGES"]
[null,"EB & RESET RINS \nTNSP ONLY","dms_030601_01_UOM",null,"dms_030701_01_UOM","dms_030702_01_UOM"]
[null,null,"%",null,"Number of spans","km"]
[null,null,"number",null,"Years","%"]
[null,null,"number",null,"Trees","km"]
[null,null,"%",null,"Defects","number"]
[null,null,"number",null,"Number of spans"]
[null,null,"number",null,"km"]
[null,null,"%",null,"km"]
[null,null,"number",null,"Number of spans"]
[null,null,"number"]
[null,null,"%"]
[null,null,"number"]
[null,null,"%"]
[null,null,"number"]
[null,null,"%"]
[null,null,"number"]
[]
[null,"EB & RESET RINS \nDNSP & TNSP","dms_EB_RAB_PIT"]
[null,null,"Beginning of year"]
[null,null,"End of year"]
[null,null,"End of year"]
[null,null,"End of year"]
[null,null,"End of year"]
[null,null,"End of year"]
[]
[null,"ARR \nDNSP ONLY","dms_030605_UOM","dms_03060703_UOM","dms_E020202_UOM","Spare"]
[null,null,"number","number","Length of mains replaced"]
[null,null,"number","number","Number of services replaced"]
[null,null,"number","number"]
[null,null,"number","number"]
[null,null,"number","(per cent)"]
[null,null,"number"]
[null,null,"number"]
[null,null,"number"]
[null,null,"number"]
[null,null,"number"]
[null,null,"number"]
[null,null,"number"]
[null,null,"(per cent)"]
[null,null,"(per cent)",""]
[]
[null,"RFM","dms_Beg","dms_Mid","dms_End"]
[null,null,"Beginning of year","Mid year","End of Year"]
[]
[null,"PTRM","dms_PTRM_RAB_PIT","dms_PTRM_TAB_PIT","DMS_Xfactor"]
[null,null,"Beginning of year","Beginning of year","x factors"]
[null,null,"End of year","End of year"]
[null,null,"End of year","End of year"]
[null,null,"End of year","End of year"]
[null,null,"End of year"]
[]
[]
[null,"STPIS & MIC NAMED RANGES "]
[]
[null,"These \"row descriptions\" are the column headings in the various templates but become row descriptions in the ETL process"]
[]
[null,"Table 6.3 sustained interruptions - row descriptions","dms_060301_CustNo_Affected_Row","dms_060301_Avg_Duration_Sustained_Int_Row","dms_060301_Effect_unplanned_SAIDI_Row","dms_060301_Effect_unplanned_SAIFI_Row"]
[null,null,"Number of customers affected by the interruption","Average duration of sustained customer interruption","Effect on unplanned SAIDI","Effect on unplanned SAIFI"]
[]
[]
[null,"Table 6.1 telephone answering - row descriptions and start date","dms_060101_Rows","dms_060102_Rows","dms_060101_StartDateTxt"]
[null,null,"Total number of calls \n(after removing excluded events)","Number of calls answered within 30 seconds \n(after excluding excluded events) ",{"$f":"dms_060701_StartDateTxt","v":"1-Jul-2014"}]
[]
[]
[null,"Table 6.8.1 - row descriptions","dms_060801_01_Rows","dms_060801_02_Rows","dms_060801_03_Rows","dms_060801_04_Rows"]
[null,null,"Number of interruptions","Duration of interruptions","Total unplanned minutes off supply","Effect on unplanned MAIFI"]
[]
[]
[null,"Table 7.9.4 - market impact component - row descriptions","dms_070904_01_Rows","without exclusions","with exclusions"]
[]
[]
[null,"These headings (Lists) are determined from the INDEX/MATCH function on the NSP selected on the Business & other details sheet"]
[]
[null,"Table 6.7.1 - daily performance data - unplanned - MAIFI  -- row descriptions and header named range values","dms_060701_Feeder_Header_Lvl4",{"$f":"INDEX(dms_FeederName_1,MATCH(dms_TradingName,dms_TradingName_List))","v":"CBD"},{"$f":"INDEX(dms_FeederName_1,MATCH(dms_TradingName,dms_TradingName_List))","v":"CBD"},{"$f":"INDEX(dms_FeederName_2,MATCH(dms_TradingName,dms_TradingName_List))","v":"Urban"},{"$f":"INDEX(dms_FeederName_2,MATCH(dms_TradingName,dms_TradingName_List))","v":"Urban"},{"$f":"INDEX(dms_FeederName_3,MATCH(dms_TradingName,dms_TradingName_List))","v":"Short rural"},{"$f":"INDEX(dms_FeederName_3,MATCH(dms_TradingName,dms_TradingName_List))","v":"Short rural"},{"$f":"INDEX(dms_FeederName_4,MATCH(dms_TradingName,dms_TradingName_List))","v":"Long rural"},{"$f":"INDEX(dms_FeederName_4,MATCH(dms_TradingName,dms_TradingName_List))","v":"Long rural"},{"$f":"IF((INDEX(dms_FeederName_5,MATCH(dms_TradingName,dms_TradingName_List))=0),\"Network\",(INDEX(dms_FeederName_5,MATCH(dms_TradingName,dms_TradingName_List))))","v":"Network"},{"$f":"IF((INDEX(dms_FeederName_5,MATCH(dms_TradingName,dms_TradingName_List))=0),\"Network\",(INDEX(dms_FeederName_5,MATCH(dms_TradingName,dms_TradingName_List))))","v":"Network"},"Network","Network"]
[]
[null,null,"dms_060701_Rows","All events","After removing excluded events","All events","After removing excluded events","All events","After removing excluded events","All events","After removing excluded events","All events","After removing excluded events","All events","After removing excluded events"]
[null,null,null,"the number of column headings changes from 10 to 12 depending on the number of feeder categories for the NSP"]
[]
[null,null,"dms_0603_FeederList",{"$f":"INDEX(dms_FeederName_1,MATCH(dms_TradingName,dms_TradingName_List))","v":"CBD"},{"$f":"INDEX(dms_FeederName_2,MATCH(dms_TradingName,dms_TradingName_List))","v":"Urban"},{"$f":"INDEX(dms_FeederName_3,MATCH(dms_TradingName,dms_TradingName_List))","v":"Short rural"},{"$f":"INDEX(dms_FeederName_4,MATCH(dms_TradingName,dms_TradingName_List))","v":"Long rural"}]
[]
[]
[null,"Use these to add to specific worksheets in existing files","Use these to add to specific worksheets in existing files"]
[]
[]
[null,"ARRs 6.7 STPIS daily performance","dms_060101_Values","dms_060102_Values","dms_060701_Values"]
[null,null,"dms_LeapYear"]
[]
[]
[null,"ARR's  6.8 STPIS exclusions","dms_060801_Event_Date","dms_060801_OutageID","dms_060801_FeederID","dms_060801_FeederClass","dms_060801_CauseID","dms_060801_01_Values","dms_060801_02_Values","dms_060801_03_Values","dms_060801_Excl_Cat","dms_060801_04_Values"]
[null,null,"dms_060801_StartCell"]
[]
[]
[null,"CA 6.3 sustained interruptions","dms_060301_Event_Date","dms_060301_Event_Time","dms_060301_AssetID","dms_060301_FeederClass","dms_060301_Reason","dms_060301_DetailedReason","dms_060301_CustNo_Affected_Values","dms_060301_Avg_Duration_Sustained_Int_Values","dms_060301_Effect_unplanned_SAIDI_Values","dms_060301_Effect_unplanned_SAIFI_Values","dms_060301_MED"]
[]
[]
[]
[null,"PTRM input sheet","DMS_50_01_01a","DMS_50_01_01aa","DMS_50_01_01b","DMS_50_01_01bb","DMS_50_01_01c","DMS_50_01_01d","DMS_50_01_01dd"]

{"sheet":"AER lookups","index":9,"n_rows":101,"n_cols":37,"rows_kept":101,"cut":false,"hidden":true,"merged":[[5,36,7,36],[22,1,22,4],[4,24,4,35],[5,24,5,27],[5,29,7,33],[5,34,7,34],[5,35,7,35]]}
[null,"AER LOOKUP TABLES"]
[]
[null,"Template number",5]
[]
[null,null,null,null,null,null,null,null,null,null,null,null,null,null,null,null,null,null,null,null,null,null,null,null,"FOR ELECTRICITY BUSINESSES ONLY"]
[null,null,null,null,null,null,null,null,null,null,null,null,null,null,null,null,null,null,null,null,null,null,null,null,"Feeder Types",null,null,null,"TasNetworks (D)","Feeder Names"]
[]
[null,null,null,null,null,null,null,null,null,null,null,null,null,null,null,null,null,null,null,null,null,null,null,null,"CBD","Urban","Short rural","long rural","EXTRA"]
[null,"dms_TradingName_List","dms_TradingNameFull_List","dms_ABN_List","dms_JurisdictionList","dms_Sector_List","dms_Segment_List","dms_FormControl_List","dms_RPT_List","dms_RPTMonth_List","dms_CRCPlength_List","dms_FRCPlength_List","dms_PRCPlength_List","dms_663_List","dms_Addr1_List","dms_Addr2_List","dms_Suburb_List","dms_State_List","dms_PostCode_List","dms_PAddr1_List","dms_PAddr2_List","dms_PSuburb_List","dms_PState_List","dms_PPostCode_List","dms_CBD_flag","dms_Urban_flag","dms_ShortRural_flag","dms_LongRural_flag","dms_FeederType_5_flag","dms_FeederName_1","dms_FeederName_2","dms_FeederName_3","dms_FeederName_4","dms_FeederName_5","dms_MAIFI_flag_List","dms_Public_Lighting_List","Name"]
[null,"Australian Distribution Co.","Australian Distribution Co.",11222333444,"NSW","Electricity","Distribution","Revenue cap","Financial","June",5,5,5,2,"123 Straight Street",null,"SYDNEY","NSW",2000,"PO Box 123",null,"SYDNEY","NSW",2000,"YES","YES","YES","YES","NO","CBD","Urban","Short rural","Long rural",null,"NO","YES","Australian Distribution Co."]
[null,"Australian Transmission Co.","Australian Transmission Co.",11222333444,"NSW","Electricity","Transmission","Revenue cap","Financial","June",5,5,5,5,"123 Straight Street",null,"SYDNEY","NSW",2000,"PO Box 123",null,"SYDNEY","NSW",2000,"NO","NO","NO","NO","NO","CBD","Urban","Short rural","Long rural",null,"NO","NO","Australian Transmission Co."]
[null,"Directlink","Directlink",16779340889,"Qld","Electricity","Transmission","Revenue cap","Financial","June",5,5,5,5,"Level 25","580 George Street","SYDNEY","NSW",2000,"PO Box R41",null,"ROYAL EXCHANGE","NSW",1225,"NO","NO","NO","NO","NO","CBD","Urban","Short rural","Long rural",null,"NO","NO","Directlink"]
[null,"ElectraNet","ElectraNet",41094482416,"SA","Electricity","Transmission","Revenue cap","Financial","June",5,5,5,5,"52-55 East Terrace","Rymill Park","ADELAIDE","SA",5000,"PO Box 7096","Hutt Street Post Office","ADELAIDE","SA",5000,"NO","NO","NO","NO","NO","CBD","Urban","Short rural","Long rural",null,"NO","NO","ElectraNet"]
[null,"Energex","Energex",40078849055,"Qld","Electricity","Distribution","Revenue cap","Financial","June",5,5,5,5,"26 Reddacliff Street",null,"NEWSTEAD","Qld",4006,"26 Reddacliff Street",null,"NEWSTEAD","QLD",4006,"YES","YES","YES","NO","NO","CBD","Urban","Short rural","Long rural",null,"NO","YES","Energex"]
[null,"Ergon Energy","Ergon Energy",50087646062,"Qld","Electricity","Distribution","Revenue cap","Financial","June",5,5,5,5,"22 Walker Street",null,"TOWNSVILLE","Qld",4810,"Po Box 264",null,"FORTITUDE VALLEY","QLD",4006,"NO","YES","YES","YES","NO","CBD","Urban","Short rural","Long rural",null,"NO","YES","Ergon Energy"]
[null,"Murraylink","Murraylink",79181207909,"SA","Electricity","Transmission","Revenue cap","Financial","June",5,5,5,5,"Level 19","580 George Street","SYDNEY","NSW",2000,"PO Box R41",null,"ROYAL EXCHANGE","NSW",1225,"NO","NO","NO","NO","NO","CBD","Urban","Short rural","Long rural",null,"NO","NO","Murraylink"]
[null,"Powerlink","Queensland Electricity Transmission Corporation Limited trading as Powerlink Queensland",82078849233,"Qld","Electricity","Transmission","Revenue cap","Financial","June",5,5,5,5,"33 Harold St",null,"VIRGINIA","Qld",4014,"PO Box 1193",null,"VIRGINIA","QLD",4014,"NO","NO","NO","NO","NO","CBD","Urban","Short rural","Long rural",null,"NO","NO","Powerlink"]
[null,"SA Power Networks","SA Power Networks",13332330749,"SA","Electricity","Distribution","Revenue cap","Financial","June",5,5,5,5,"1 Anzac Highway",null,"KESWICK","SA",5035,"GPO Box 77",null,"ADELAIDE","SA",5000,"YES","YES","YES","YES","NO","CBD","Urban","Short rural","Long rural",null,"NO","YES","SA Power Networks"]
[]
[]
[]
[]
[null,"The Reg Year Ending (dms_RYE) must be set to the last year of the regulatory period. For forecast data is is usually (FRCP_y5) for actual it is a single year (CRY). For historical actual data the RYE will need to be set manually in the business details sheet by setting the dms_Multiyear_flag to 1 and putting the correct value in 'dms_Specified_FinalYear. See cells C67:C68"]
[null,"dms_Model_List ","dms_Model_Name_Format1","dms_Worksheet_List","dms_Model_Span_List"]
[null,"ARR","Annual Reporting",{"$f":"IF(dms_MultiYear_ResponseFlag=\"yes\",\"NEW HISTORICAL ANNUAL REPORTING\",\"ANNUAL REPORTING\")","v":"NEW HISTORICAL ANNUAL REPORTING"},1]
[null,"CA","Category Analysis",{"$f":"IF(dms_MultiYear_ResponseFlag=\"yes\",\"NEW HISTORICAL CATEGORY ANALYSIS\",\"CATEGORY ANALYSIS\")","v":"NEW HISTORICAL CATEGORY ANALYSIS"},1]
[null,"CESS","Capitlal Expenditure","CAPITLAL EXPENDITURE SHARING SCHEMING",5]
[null,"CPI","CPI","CPI",5]
[null,"EB","Economic Benchmarking",{"$f":"IF(dms_MultiYear_ResponseFlag=\"yes\",\"NEW HISTORICAL ECONOMIC BENCHMARKING\",\"ECONOMIC BENCHMARKING\")","v":"NEW HISTORICAL ECONOMIC BENCHMARKING"},1]
[null,"EBSS","Efficiency Benefit Sharing Scheme","EFFICIENCY BENEFIT SHARING SCHEME",5]
[null,"Pricing","Pricing Proposal","PRICING PROPOSAL",5]
[null,"Profitability","Profitability","PROFITABILITY",5]
[null,"PTRM","Post Tax Revenue Model","POST TAX REVENUE MODEL",5]
[null,"Reset","Regulatory Reporting (Reset)","REGULATORY REPORTING STATEMENT",5]
[null,"RFM","Roll Forward Model","ROLL FORWARD MODEL",5]
[null,"WACC","Weighted Average Cost of Capital","WEIGHTED AVERAGE COST OF CAPITAL",1]
[]
[]
[]
[null,"Financial","Calendar",null,"PREVIOUS",null,"CURRENT",null,"FORTHCOMING"]
[null,"1987-88","1988","PRCP_y1",{"$f":"INDEX(INDIRECT(dms_RPT),dms_PRCP_start_row)","v":"2015-16"},"CRCP_y1",{"$f":"INDEX(INDIRECT(dms_RPT),dms_CRCP_start_row)","v":"2020-21"},{"$f":"FRCP_y1","v":"2025-26"},{"$f":"INDEX(INDIRECT(dms_RPT),dms_FRCP_start_row)","v":"2025-26"}]
[null,"1988-89","1989","PRCP_y2",{"$f":"INDEX(INDIRECT(dms_RPT),dms_PRCP_start_row+1)","v":"2016-17"},"CRCP_y2",{"$f":"INDEX(INDIRECT(dms_RPT),dms_CRCP_start_row+1)","v":"2021-22"},"FRCP_y2",{"$f":"INDEX(INDIRECT(dms_RPT),dms_FRCP_start_row+1)","v":"2026-27"}]
[null,"1989-90","1990","PRCP_y3",{"$f":"INDEX(INDIRECT(dms_RPT),dms_PRCP_start_row+2)","v":"2017-18"},"CRCP_y3",{"$f":"INDEX(INDIRECT(dms_RPT),dms_CRCP_start_row+2)","v":"2022-23"},"FRCP_y3",{"$f":"INDEX(INDIRECT(dms_RPT),dms_FRCP_start_row+2)","v":"2027-28"}]
[null,"1990-91","1991","PRCP_y4",{"$f":"INDEX(INDIRECT(dms_RPT),dms_PRCP_start_row+3)","v":"2018-19"},"CRCP_y4",{"$f":"INDEX(INDIRECT(dms_RPT),dms_CRCP_start_row+3)","v":"2023-24"},"FRCP_y4",{"$f":"INDEX(INDIRECT(dms_RPT),dms_FRCP_start_row+3)","v":"2028-29"}]
[null,"1991-92","1992","PRCP_y5",{"$f":"INDEX(INDIRECT(dms_RPT),dms_PRCP_start_row+4)","v":"2019-20"},"CRCP_y5",{"$f":"INDEX(INDIRECT(dms_RPT),dms_CRCP_start_row+4)","v":"2024-25"},"FRCP_y5",{"$f":"INDEX(INDIRECT(dms_RPT),dms_FRCP_start_row+4)","v":"2029-30"}]
[null,"1992-93","1993","PRCP_y6",{"$f":"INDEX(INDIRECT(dms_RPT),dms_PRCP_start_row+5)","v":"2020-21"},"CRCP_y6",{"$f":"INDEX(INDIRECT(dms_RPT),dms_CRCP_start_row+5)","v":"2025-26"},"FRCP_y6",{"$f":"INDEX(INDIRECT(dms_RPT),dms_FRCP_start_row+5)","v":"2030-31"}]
[null,"1993-94","1994","PRCP_y7",{"$f":"INDEX(INDIRECT(dms_RPT),dms_PRCP_start_row+6)","v":"2021-22"},"CRCP_y7",{"$f":"INDEX(INDIRECT(dms_RPT),dms_CRCP_start_row+6)","v":"2026-27"},"FRCP_y7",{"$f":"INDEX(INDIRECT(dms_RPT),dms_FRCP_start_row+6)","v":"2031-32"}]
[null,"1994-95","1995","PRCP_y8",{"$f":"INDEX(INDIRECT(dms_RPT),dms_PRCP_start_row+7)","v":"2022-23"},"CRCP_y8",{"$f":"INDEX(INDIRECT(dms_RPT),dms_CRCP_start_row+7)","v":"2027-28"},"FRCP_y8",{"$f":"INDEX(INDIRECT(dms_RPT),dms_FRCP_start_row+7)","v":"2032-33"}]
[null,"1995-96","1996","PRCP_y9",{"$f":"INDEX(INDIRECT(dms_RPT),dms_PRCP_start_row+8)","v":"2023-24"},"CRCP_y9",{"$f":"INDEX(INDIRECT(dms_RPT),dms_CRCP_start_row+8)","v":"2028-29"},"FRCP_y9",{"$f":"INDEX(INDIRECT(dms_RPT),dms_FRCP_start_row+8)","v":"2033-34"}]
[null,"1996-97","1997","PRCP_y10",{"$f":"INDEX(INDIRECT(dms_RPT),dms_PRCP_start_row+9)","v":"2024-25"},"CRCP_y10",{"$f":"INDEX(INDIRECT(dms_RPT),dms_CRCP_start_row+9)","v":"2029-30"},"FRCP_y10",{"$f":"INDEX(INDIRECT(dms_RPT),dms_FRCP_start_row+9)","v":"2034-35"}]
[null,"1997-98","1998","PRCP_y11",{"$f":"INDEX(INDIRECT(dms_RPT),dms_PRCP_start_row+10)","v":"2025-26"},"CRCP_y11",{"$f":"INDEX(INDIRECT(dms_RPT),dms_CRCP_start_row+10)","v":"2030-31"},"FRCP_y11",{"$f":"INDEX(INDIRECT(dms_RPT),dms_FRCP_start_row+10)","v":"2035-36"}]
[null,"1998-99","1999","PRCP_y12",{"$f":"INDEX(INDIRECT(dms_RPT),dms_PRCP_start_row+11)","v":"2026-27"},"CRCP_y12",{"$f":"INDEX(INDIRECT(dms_RPT),dms_CRCP_start_row+11)","v":"2031-32"},"FRCP_y12",{"$f":"INDEX(INDIRECT(dms_RPT),dms_FRCP_start_row+11)","v":"2036-37"}]
[null,"1999-00","2000","PRCP_y13",{"$f":"INDEX(INDIRECT(dms_RPT),dms_PRCP_start_row+12)","v":"2027-28"},"CRCP_y13",{"$f":"INDEX(INDIRECT(dms_RPT),dms_CRCP_start_row+12)","v":"2032-33"},"FRCP_y13",{"$f":"INDEX(INDIRECT(dms_RPT),dms_FRCP_start_row+12)","v":"2037-38"}]
[null,"2000-01","2001","PRCP_y14",{"$f":"INDEX(INDIRECT(dms_RPT),dms_PRCP_start_row+13)","v":"2028-29"},"CRCP_y14",{"$f":"INDEX(INDIRECT(dms_RPT),dms_CRCP_start_row+13)","v":"2033-34"},"FRCP_y14",{"$f":"INDEX(INDIRECT(dms_RPT),dms_FRCP_start_row+13)","v":"2038-39"}]
[null,"2001-02","2002","PRCP_y15",{"$f":"INDEX(INDIRECT(dms_RPT),dms_PRCP_start_row+14)","v":"2029-30"},"CRCP_y15",{"$f":"INDEX(INDIRECT(dms_RPT),dms_CRCP_start_row+14)","v":"2034-35"},"FRCP_y15",{"$f":"INDEX(INDIRECT(dms_RPT),dms_FRCP_start_row+14)","v":"2039-40"}]
[null,"2002-03","2003","PRCP_y16",{"$f":"INDEX(INDIRECT(dms_RPT),dms_PRCP_start_row+15)","v":"2030-31"},"CRCP_y16",{"$f":"INDEX(INDIRECT(dms_RPT),dms_CRCP_start_row+15)","v":"2035-36"},"FRCP_y16",{"$f":"INDEX(INDIRECT(dms_RPT),dms_FRCP_start_row+15)","v":"2040-41"}]
[null,"2003-04","2004","PRCP_y17",{"$f":"INDEX(INDIRECT(dms_RPT),dms_PRCP_start_row+16)","v":"2031-32"},"CRCP_y17",{"$f":"INDEX(INDIRECT(dms_RPT),dms_CRCP_start_row+16)","v":"2036-37"},"FRCP_y17",{"$f":"INDEX(INDIRECT(dms_RPT),dms_FRCP_start_row+16)","v":"2041-42"}]
[null,"2004-05","2005","PRCP_y18",{"$f":"INDEX(INDIRECT(dms_RPT),dms_PRCP_start_row+17)","v":"2032-33"},"CRCP_y18",{"$f":"INDEX(INDIRECT(dms_RPT),dms_CRCP_start_row+17)","v":"2037-38"},"FRCP_y18",{"$f":"INDEX(INDIRECT(dms_RPT),dms_FRCP_start_row+17)","v":"2042-43"}]
[null,"2005-06","2006","PRCP_y19",{"$f":"INDEX(INDIRECT(dms_RPT),dms_PRCP_start_row+18)","v":"2033-34"},"CRCP_y19",{"$f":"INDEX(INDIRECT(dms_RPT),dms_CRCP_start_row+18)","v":"2038-39"},"FRCP_y19",{"$f":"INDEX(INDIRECT(dms_RPT),dms_FRCP_start_row+18)","v":"2043-44"}]
[null,"2006-07","2007","PRCP_y20",{"$f":"INDEX(INDIRECT(dms_RPT),dms_PRCP_start_row+19)","v":"2034-35"},"CRCP_y20",{"$f":"INDEX(INDIRECT(dms_RPT),dms_CRCP_start_row+19)","v":"2039-40"},"FRCP_y20",{"$f":"INDEX(INDIRECT(dms_RPT),dms_FRCP_start_row+19)","v":"2044-45"}]
[null,"2007-08","2008","PRCP_y21",{"$f":"INDEX(INDIRECT(dms_RPT),dms_PRCP_start_row+20)","v":"2035-36"},"CRCP_y21",{"$f":"INDEX(INDIRECT(dms_RPT),dms_CRCP_start_row+20)","v":"2040-41"},"FRCP_y21",{"$f":"INDEX(INDIRECT(dms_RPT),dms_FRCP_start_row+20)","v":"2045-46"}]
[null,"2008-09","2009","PRCP_y22",{"$f":"INDEX(INDIRECT(dms_RPT),dms_PRCP_start_row+21)","v":"2036-37"},"CRCP_y22",{"$f":"INDEX(INDIRECT(dms_RPT),dms_CRCP_start_row+21)","v":"2041-42"},"FRCP_y22",{"$f":"INDEX(INDIRECT(dms_RPT),dms_FRCP_start_row+21)","v":"2046-47"}]
[null,"2009-10",2010,"PRCP_y23",{"$f":"INDEX(INDIRECT(dms_RPT),dms_PRCP_start_row+22)","v":"2037-38"},"CRCP_y23",{"$f":"INDEX(INDIRECT(dms_RPT),dms_CRCP_start_row+22)","v":"2042-43"},"FRCP_y23",{"$f":"INDEX(INDIRECT(dms_RPT),dms_FRCP_start_row+22)","v":"2047-48"}]
[null,"2010-11",2011,"PRCP_y24",{"$f":"INDEX(INDIRECT(dms_RPT),dms_PRCP_start_row+23)","v":"2038-39"},"CRCP_y24",{"$f":"INDEX(INDIRECT(dms_RPT),dms_CRCP_start_row+23)","v":"2043-44"},"FRCP_y24",{"$f":"INDEX(INDIRECT(dms_RPT),dms_FRCP_start_row+23)","v":{"$error":"#REF!"}}]
[null,"2011-12",2012,"PRCP_y25",{"$f":"INDEX(INDIRECT(dms_RPT),dms_PRCP_start_row+24)","v":"2039-40"},"CRCP_y25",{"$f":"INDEX(INDIRECT(dms_RPT),dms_CRCP_start_row+24)","v":"2044-45"},"FRCP_y25",{"$f":"INDEX(INDIRECT(dms_RPT),dms_FRCP_start_row+24)","v":{"$error":"#REF!"}}]
[null,"2012-13",2013]
[null,"2013-14",2014]
[null,"2014-15",2015]
[null,"2015-16",2016]
[null,"2016-17",2017]
[null,"2017-18",2018]
[null,"2018-19",2019]
[null,"2019-20",2020]
[null,"2020-21",2021]
[null,"2021-22",2022,null,"CRY - FRY"]
[null,"2022-23",2023,"dms_y1",{"$f":"IFERROR(INDEX(INDIRECT(dms_RPT),dms_CRY_start_row),0)","v":"2014-15"}]
[null,"2023-24",2024,"dms_y2",{"$f":"IFERROR(INDEX(INDIRECT(dms_RPT),dms_CRY_start_row+1),0)","v":"2015-16"}]
[null,"2024-25",2025,"dms_y3",{"$f":"IFERROR(INDEX(INDIRECT(dms_RPT),dms_CRY_start_row+2),0)","v":"2016-17"}]
[null,"2025-26",2026,"dms_y4",{"$f":"IFERROR(INDEX(INDIRECT(dms_RPT),dms_CRY_start_row+3),0)","v":"2017-18"}]
[null,"2026-27",2027,"dms_y5",{"$f":"IFERROR(INDEX(INDIRECT(dms_RPT),dms_CRY_start_row+4),0)","v":"2018-19"}]
[null,"2027-28",2028,"dms_y6",{"$f":"IFERROR(INDEX(INDIRECT(dms_RPT),dms_CRY_start_row+5),0)","v":"2019-20"}]
[null,"2028-29",2029,"dms_y7",{"$f":"IFERROR(INDEX(INDIRECT(dms_RPT),dms_CRY_start_row+6),0)","v":"2020-21"}]
[null,"2029-30",2030,"dms_y8",{"$f":"IFERROR(INDEX(INDIRECT(dms_RPT),dms_CRY_start_row+7),0)","v":"2021-22"}]
[null,"2030-31",2031,"dms_y9",{"$f":"IFERROR(INDEX(INDIRECT(dms_RPT),dms_CRY_start_row+8),0)","v":"2022-23"}]
[null,"2031-32",2032,"dms_y10",{"$f":"IFERROR(INDEX(INDIRECT(dms_RPT),dms_CRY_start_row+9),0)","v":"2023-24"}]
[null,"2032-33",2033,"dms_y11",{"$f":"IFERROR(INDEX(INDIRECT(dms_RPT),dms_CRY_start_row+10),0)","v":"2024-25"}]
[null,"2033-34",2034,"dms_y12",{"$f":"IFERROR(INDEX(INDIRECT(dms_RPT),dms_CRY_start_row+11),0)","v":"2025-26"}]
[null,"2034-35",2035,"dms_y13",{"$f":"IFERROR(INDEX(INDIRECT(dms_RPT),dms_CRY_start_row+12),0)","v":"2026-27"}]
[null,"2035-36",2036,"dms_y14",{"$f":"IFERROR(INDEX(INDIRECT(dms_RPT),dms_CRY_start_row+13),0)","v":"2027-28"}]
[null,"2036-37",2037,"dms_y15",{"$f":"IFERROR(INDEX(INDIRECT(dms_RPT),dms_CRY_start_row+14),0)","v":"2028-29"}]
[null,"2037-38",2038,"dms_y16",{"$f":"IFERROR(INDEX(INDIRECT(dms_RPT),dms_CRY_start_row+15),0)","v":"2029-30"}]
[null,"2038-39",2039,"dms_y17",{"$f":"IFERROR(INDEX(INDIRECT(dms_RPT),dms_CRY_start_row+16),0)","v":"2030-31"}]
[null,"2039-40",2040,"dms_y18",{"$f":"IFERROR(INDEX(INDIRECT(dms_RPT),dms_CRY_start_row+17),0)","v":"2031-32"}]
[null,"2040-41",2041,"dms_y19",{"$f":"IFERROR(INDEX(INDIRECT(dms_RPT),dms_CRY_start_row+18),0)","v":"2032-33"}]
[null,"2041-42",2042,"dms_y20",{"$f":"IFERROR(INDEX(INDIRECT(dms_RPT),dms_CRY_start_row+19),0)","v":"2033-34"}]
[null,"2042-43",2043,"dms_y21",{"$f":"IFERROR(INDEX(INDIRECT(dms_RPT),dms_CRY_start_row+20),0)","v":"2034-35"}]
[null,"2043-44",2044,"dms_y22",{"$f":"IFERROR(INDEX(INDIRECT(dms_RPT),dms_CRY_start_row+21),0)","v":"2035-36"}]
[null,"2044-45",2045,"dms_y23",{"$f":"IFERROR(INDEX(INDIRECT(dms_RPT),dms_CRY_start_row+22),0)","v":"2036-37"}]
[null,"2045-46",2046,"dms_y24",{"$f":"IFERROR(INDEX(INDIRECT(dms_RPT),dms_CRY_start_row+23),0)","v":"2037-38"}]
[null,"2046-47",2047,"dms_y25",{"$f":"IFERROR(INDEX(INDIRECT(dms_RPT),dms_CRY_start_row+24),0)","v":"2038-39"}]
[null,"2047-48",2048,"dms_y26",{"$f":"IFERROR(INDEX(INDIRECT(dms_RPT),dms_CRY_start_row+25),0)","v":"2039-40"}]

{"sheet":"AER ETL","index":10,"n_rows":152,"n_cols":10,"rows_kept":152,"cut":false,"hidden":true,"merged":[[13,0,17,0],[14,4,14,8],[16,2,16,4],[20,0,27,0],[28,0,33,0],[36,0,61,0],[36,37,36,58],[36,68,36,89],[34,37,34,58],[73,1,75,1],[34,68,34,89],[35,37,35,58],[35,68,35,89]]}
[null,"AER ETL INFORMATION"]
[]
[null,"THIS IS A NEW CA FILE - need to extract data in this file and put into individual versions of existing CA RINS - we do not ingest partial CA files"]
[]
[null,"USES NAMED RANGES FLAG","yes","dms_Defined_Names_Used"]
[]
[null,"IF THIS IS AN ABC RIN - make sure the the named range CRY is applied and the named range dms_dollar_nom_UOM is applied"]
[null,"IF THIS IS A RESET RIN - make sure the named ranges CRY and dms_dollar_nom_UOM are NOT present in the workbook"]
[null,"FOR ABC RINS THAT SPAN MULTIPLE YEARS - make sure MultiYear Flag is set and final year entered as required"]
[]
[null,"Full trading name",{"$f":"INDEX(dms_TradingNameFull_List,MATCH(dms_TradingName,dms_TradingName_List))","v":"SA Power Networks"},null,"dms_TradingNameFull"]
[null,"Trading name",{"$f":"dms_TradingName","v":"SA Power Networks"}]
["Selected here","Model / RIN","CA","dms_Model"]
["Read from Business & other details","Source","Reporting","dms_Source",{"$f":"IF(dms_Model=\"Reset\", \"Make sure you have set Reg Proposal as source\",\"\")","v":""}]
[null,"Data quality","Consolidated","For DB purposes this is always Consoldiated"]
[null,"Data status","Public","For DB purposes this is always Public"]
[null,"Amendment reason",{"$f":"dms_Amendment_Text","v":"."},null,null,"dms_AmendmentReason"]
[null,"Submission date",{"$f":"dms_Typed_Submission_Date","v":"2024-01-31"},"dms_SubmissionDate"]
[]
["Redundant","EBSS - First application of scheme in forthcoming period?","No"]
["Pre-populated from lookup table","Data ingestion data quality","Consolidated","dms_DataQuality","Always Consolidated"]
[null,"Sector",{"$f":"INDEX(dms_Sector_List,MATCH(dms_TradingName,dms_TradingName_List))","v":"Electricity"},"dms_Sector","=INDEX(dms_Sector_List,MATCH(dms_TradingName,dms_TradingName_List))"]
[null,"Segment",{"$f":"INDEX(dms_Segment_List,MATCH(dms_TradingName,dms_TradingName_List))","v":"Distribution"},"dms_Segment","=INDEX(dms_Segment_List,MATCH(dms_TradingName,dms_TradingName_List))"]
[null,"Regulatory Year Ending",{"$f":"IF(dms_MultiYear_Flag=1,LEFT(dms_Specified_FinalYear,2)&RIGHT(dms_Specified_FinalYear,2),dms_RYE_result)","v":"2023"},"dms_RYE","=IF(dms_MultiYear_Flag=1,LEFT(dms_Specified_FinalYear,2)&RIGHT(dms_Specified_FinalYear,2),dms_RYE_result)"]
[null,"Reporting Period Type",{"$f":"INDEX(dms_RPT_List,MATCH(dms_TradingName,dms_TradingName_List))","v":"Financial"},"dms_RPT","=INDEX(dms_RPT_List,MATCH(dms_TradingName,dms_TradingName_List))"]
[null,"EB/CA Unit of Measure for Monetary Values","$0s","dms_dollar_nom_UOM",{"$f":"IF(dms_SingleYearModel=\"yes\",\"This is set to an historical template (EB, CA or ARR), apply UOM Named Range to cell !\",\"This is not an historical template, make sure UOM Named Range is not applied\")","v":"This is set to an historical template (EB, CA or ARR), apply UOM Named Range to cell !"},null,null,null,null,{"$f":"IFERROR(dms_dollar_nom_UOM, \"NR not applied\")","v":"$0s"}]
[null,"Security Classification","Public","dms_Classification","Always Public"]
[null,"Jurisdiction",{"$f":"INDEX(dms_JurisdictionList,MATCH(dms_TradingName,dms_TradingName_List))","v":"SA"},"dms_Jurisdiction","=INDEX(dms_JurisdictionList,MATCH(dms_TradingName,dms_TradingName_List))"]
["Relevant for PTRM, RFMs and Reset RINS","$ REAL REFERENCES"]
[null,"Does the named range CRY exist in this file? ",{"$f":"IFERROR(CRY,\"NO\")","v":"2014-15"}]
[null,"CRY-1  (last full calendar year before CRY)",{"$f":"IFERROR(IF(dms_RPT=\"calendar\",CRY-1,LEFT(CRY,4)),\"CRY not present\")","v":"2014"},"dms_Cal_Year_B4_CRY","'=IF(dms_RPT=\"financial\",VALUE(LEFT(dms_SingleYear_FinalYear_Result,4)),VALUE(LEFT(dms_SingleYear_FinalYear_Result,4)-1))"]
[null,"Dollar $ real month",{"$f":"INDEX(dms_RPTMonth_List,MATCH(dms_TradingName,dms_TradingName_List))","v":"June"},"dms_RPTMonth","=INDEX(dms_RPTMonth_List,MATCH(dms_TradingName,dms_TradingName_List))"]
[null,"Dollar $ real  (the last month before the FRCP_y1)",{"$f":"IF(dms_Model=\"RFM\",dms_DollarReal_Prev, IF(dms_SingleYearModel=\"yes\",CONCATENATE(dms_RPTMonth)&\" \"&VALUE((LEFT(dms_CRY_start_year,2)&RIGHT(dms_CRY_start_year,2))),CONCATENATE(dms_RPTMonth)&\" \"&dms_DollarReal_year))","v":"June 2015"},"dms_DollarReal","=IF(dms_Model=\"RFM\",dms_DollarReal_Prev, IF(dms_SingleYearModel=\"yes\",CONCATENATE(dms_RPTMonth)&\" \"&VALUE((LEFT(dms_CRY_start_year,2)&RIGHT(dms_CRY_start_year,2))),CONCATENATE(dms_RPTMonth)&\" \"&dms_DollarReal_year))"]
[null,"Dollar $ real previous year (PRCP_y5)",{"$f":"CONCATENATE(dms_RPTMonth)&\" \"&dms_Previous_DollarReal_year","v":"June 2020"},"dms_DollarReal_Prev","=IF(SUM(dms_SingleYear_Model)>0,CONCATENATE(dms_RPTMonth)&\" \"&VALUE(((LEFT(CRY,2))&RIGHT(CRY,2))-1),CONCATENATE(dms_RPTMonth)&\" \"&VALUE(((LEFT(dms_CRCP_FirstYear_Result,2)&RIGHT(dms_CRCP_FirstYear_Result,2))))-1)"]
[null,"PTRM/ RFMs"]
[null,"Form of control",{"$f":"INDEX(dms_FormControl_List,MATCH(dms_TradingName,dms_TradingName_List))","v":"Revenue cap"},"dms_FormControl","=INDEX(dms_FormControl_List,MATCH(dms_TradingName,dms_TradingName_List))"]
["All potential values for Regulatory Years or RYEs as calculated","This block works out the various RYE's for ALL RIN types and MODELS"]
[null,"dms_start_year",{"$f":"FRCP_y1","v":"2025-26"},"=FRCP_y1","FRCP_y1 from cover sheet"]
[null,"dms_CRY_start_year",{"$f":"IFERROR(CRY,CRCP_y4)","v":"2014-15"},"=IFERROR(CRY,CRCP_y4)"]
[null,"dms_CRY_start_row",{"$f":"IFERROR(MATCH(dms_CRY_start_year,INDIRECT(dms_RPT),0),0)","v":28},"=IFERROR(MATCH(dms_CRY_start_year,INDIRECT(dms_RPT),0),0)"]
[null,"dms_FRCP_start_row",{"$f":"MATCH(dms_start_year,INDIRECT(dms_RPT),0)","v":39},"=MATCH(dms_start_year,INDIRECT(dms_RPT),0)","Uses FRCP_y1 as a start reference"]
[null,"dms_CRCP_start_row",{"$f":"dms_FRCP_start_row-dms_CRCPlength_Num","v":34},"=dms_FRCP_start_row-dms_CRCPlength_Num","Uses the value in dms_CRCPlength_Num"]
[null,"dms_PRCP_start_row",{"$f":"dms_FRCP_start_row-dms_CRCPlength_Num-dms_PRCPlength_Num","v":29},"=dms_FRCP_start_row-dms_CRCPlength_Num-dms_PRCPlength_Num","Uses the value in dms_CRCPlength_Num and dms_PRCPlength_Num"]
[null,"dms_RYE_start_row",{"$f":"dms_FRCP_start_row+(dms_FRCPlength_Num-1)","v":43},"=dms_FRCP_start_row+(dms_FRCPlength_Num-1)","Uses the value in dms_FRCPlength_Num-1"]
[null,"FRCP_start_year",{"$f":"INDEX(INDIRECT(dms_RPT),dms_FRCP_start_row)","v":"2025-26"},"=INDEX(INDIRECT(dms_RPT),dms_FRCP_start_row)","Converts the FRCP start row to display the year"]
[null,"CRCP_start_year",{"$f":"INDEX(INDIRECT(dms_RPT),dms_CRCP_start_row)","v":"2020-21"},"=INDEX(INDIRECT(dms_RPT),dms_CRCP_start_row)","Converts the CRCP start row to display the year"]
[null,"PRCP_start_year",{"$f":"INDEX(INDIRECT(dms_RPT),dms_PRCP_start_row)","v":"2015-16"},"=INDEX(INDIRECT(dms_RPT),dms_PRCP_start_row)","Converts the PRCP start row to display the year"]
[null,"FRCP_final_year",{"$f":"INDEX(INDIRECT(dms_RPT),dms_FRCP_start_row+dms_FRCPlength_Num-1)","v":"2029-30"},"=INDEX(INDIRECT(dms_RPT),dms_FRCP_start_row+dms_FRCPlength_Num-1)","Finds the FRCP final year"]
[null,"CRCP_final_year",{"$f":"INDEX(INDIRECT(dms_RPT),dms_CRCP_start_row+dms_CRCPlength_Num-1)","v":"2024-25"},"=INDEX(INDIRECT(dms_RPT),dms_CRCP_start_row+dms_CRCPlength_Num-1)","Finds the CRCP final year"]
[null,"PRCP_final_year",{"$f":"INDEX(INDIRECT(dms_RPT),dms_PRCP_start_row+dms_FRCPlength_Num-1)","v":"2019-20"},"=INDEX(INDIRECT(dms_RPT),dms_PRCP_start_row+dms_FRCPlength_Num-1)","Finds the PRCP final year"]
[null,"dms_Reset_final_year",{"$f":"INDEX(INDIRECT(dms_RPT),dms_RYE_start_row)","v":"2029-30"},"=INDEX(INDIRECT(dms_RPT),dms_RYE_start_row)","For Resets and PTRM/RFMs (same as FRCP_final_year)"]
[null,"dms_SpecifiedYear_final_year",{"$f":"FRY","v":"2022-23"},"=FRY","FRY from cover sheet"]
[null,"dms_DollarReal_year",{"$f":"LEFT(CRCP_final_year,2)&RIGHT(CRCP_final_year,2)","v":"2025"},"=LEFT(CRCP_final_year,2)&RIGHT(CRCP_final_year,2)","Uses the value in CRCP_final_year"]
[null,"dms_Previous_DollarReal_year",{"$f":"LEFT(PRCP_final_year,2)&RIGHT(PRCP_final_year,2)","v":"2020"},"=LEFT(PRCP_final_year,2)&RIGHT(PRCP_final_year,2)","Uses the value in PRCP_final_year"]
[null,"dms_CRY_RYE",{"$f":"IFERROR(LEFT(CRY,2)&RIGHT(CRY,2),0)","v":"2015"},"=IFERROR(LEFT(CRY,2)&RIGHT(CRY,2),0)","For ABC single year RINS"]
[null,"dms_Reset_RYE",{"$f":"IF(dms_Model_Span>1,IF(dms_Model=\"RFM\",(LEFT(dms_DollarReal_year,2)&RIGHT(dms_DollarReal_year,2)),(LEFT(dms_Reset_final_year,2)&RIGHT(dms_Reset_final_year,2))),0)","v":0},"=IF(dms_Model_Span>1,IF(dms_Model=\"RFM\",(LEFT(dms_DollarReal_year,2)&RIGHT(dms_DollarReal_year,2)),(LEFT(dms_Reset_final_year,2)&RIGHT(dms_Reset_final_year,2))),0)","If model span > 1 then uses dms_Reset_RYE otherwise it's a multi year ABC and uses dms_Specified_RYE"]
[null,"dms_Specified_RYE",{"$f":"IF(dms_MultiYear_ResponseFlag=\"Yes\",(LEFT(dms_Specified_FinalYear,2)&RIGHT(dms_Specified_FinalYear,2)),0)","v":"2023"},"=IF(dms_MultiYear_ResponseFlag=\"Yes\",(LEFT(dms_Specified_FinalYear,2)&RIGHT(dms_Specified_FinalYear,2)),0)","If multi year ABC - uses dms_Specified_FinalYear"]
[null,"dms_Model_Span",{"$f":"INDEX(dms_Model_Span_List,MATCH(dms_Model,dms_Model_List))","v":1},"=INDEX(dms_Model_Span_List,MATCH(dms_Model,dms_Model_List))","A result of 5 is used to signify that it is more than 1 year span"]
[null,"dms_RYE_result",{"$f":"IF(dms_MultiYear_ResponseFlag=\"yes\",dms_Specified_RYE,(IF(dms_Model_Span>1,dms_Reset_RYE,dms_CRY_RYE)))","v":"2023"},"=IF(dms_MultiYear_ResponseFlag=\"yes\",dms_Specified_RYE,(IF(dms_Model_Span>1,dms_Reset_RYE,dms_CRY_RYE)))","Nested IF - feeds into dms_RYE"]
[null,"dms_Reset_Span",{"$f":"IF(dms_Reset_RYE>0,CONCATENATE(FRCP_y1,\" to \",FRCP_final_year),0)","v":0},"=IF(dms_Reset_RYE>0,CONCATENATE(FRCP_y1,\" to \",FRCP_final_year),0)","Reset span of years as text"]
[null,"dms_SpecifiedYear_Span",{"$f":"IF(dms_Specified_RYE>0,CONCATENATE(CRY,\" to \",dms_Specified_FinalYear),0)","v":"2014-15 to 2022-23"},"=IF(dms_Specified_RYE>0,CONCATENATE(CRY,\" to \",dms_Specified_FinalYear),0)","Multi year ABC span of years as text"]
[null,"dms_Header_Span",{"$f":"IF(dms_MultiYear_Flag=1,dms_SpecifiedYear_Span,IF(dms_Model_Span>1,dms_y1&\" to \"&FRCP_final_year,CRY))","v":"2014-15 to 2022-23"},"=IF(dms_MultiYear_Flag=1,dms_SpecifiedYear_Span,IF(dms_Model_Span>1,dms_Reset_Span,CRY))","NESTED IF - for Sheet Headers"]
[null,"ABC RINS THAT SPAN MULTIPLE YEARS"]
[null,"This is a multi year ABC RIN?","Yes"]
[null,null,{"$f":"IF(dms_MultiYear_ResponseFlag=\"No\",0,1)","v":1},"dms_MultiYear_Flag","This is set from the answer provided above"]
[null,null,{"$f":"IF(dms_MultiYear_Flag=1,FRY,\"not a Multiple year submission\")","v":"2022-23"},"dms_Specified_FinalYear","The result here is returned to dms_CRCP_FinalYear_Result if response to Q in C73 is \"yes\" and dms_MultiYear_Flag is set to 1"]
[null," Start year for 5.2 in Multi year ABC RINS",{"$f":"IFERROR(IF(dms_MultiYear_Flag=1,FRY,CRY),\"not an ABC\")","v":"2022-23"},"dms_0502_Inst_Year","=IF(dms_MultiYear_Flag=1,FRY,CRY)",null,"For single year RINS this is CRY - multi year RINS need to start a the end of the span of years (ie. FRY)"]
[null,"WHAT IS THE RYE?"]
[null,"Reg Period Lengths"]
[null,"PRCP length in years",{"$f":"INDEX(dms_PRCPlength_List,MATCH(dms_TradingName,dms_TradingName_List))","v":5},"dms_PRCPlength_Num","=INDEX(dms_PRCPlength_List,MATCH(dms_TradingName,dms_TradingName_List))"]
[null,"CRCP length in years",{"$f":"INDEX(dms_CRCPlength_List,MATCH(dms_TradingName,dms_TradingName_List))","v":5},"dms_CRCPlength_Num","=INDEX(dms_CRCPlength_List,MATCH(dms_TradingName,dms_TradingName_List))"]
[null,"FRCP length in years",{"$f":"INDEX(dms_FRCPlength_List,MATCH(dms_TradingName,dms_TradingName_List))","v":5},"dms_FRCPlength_Num","=INDEX(dms_FRCPlength_List,MATCH(dms_TradingName,dms_TradingName_List))"]
[null,"Single year RIN?"]
[null,"Single Year ABC RIN ?",{"$f":"IF(dms_Model=\"EB\",1,0)","v":0},"dms_EB"]
[null,null,{"$f":"IF(dms_Model=\"CA\",1,0)","v":1},"dms_CA","=dms_SingleYear_Model"]
[null,null,{"$f":"IF(dms_Model=\"ARR\",1,0)","v":0},"dms_ARR"]
[null,"Is this a single Year ABC RIN?",{"$f":"IF(SUM(dms_SingleYear_Model)=1,\"yes\",\"no\")","v":"yes"},"dms_SingleYearModel","=IF(SUM(dms_SingleYear_Model)=1,\"yes\",\"no\")"]
[null,"Single Year Final Year Result",{"$f":"IF(AND(dms_SingleYearModel=\"yes\",dms_MultiYear_Flag=0),CRY,0)","v":0},"dms_SingleYear_FinalYear_Result","=IFERROR(IF(SUM(dms_SingleYear_Model)<>0,(INDIRECT(dms_SingleYear_FinalYear_Ref)),\"not a single year RIN\"),\"CRY not present\")"]
[null,"Multi year RIN?"]
[]
[null,"Multi Year Reset/Model?",{"$f":"IF(dms_Model_Span>1,\"yes\",\"no\")","v":"no"}]
[null,"Final year result for Reset/Model",{"$f":"IF(dms_Model_Span>1,dms_Reset_final_year,0)","v":0},"dms_MultiYear_FinalYear_Result","dms_CRCP_FinalYear_Result"]
[]
[null,"Multi Year ABC RIN?",{"$f":"IF(dms_MultiYear_Flag=1,\"yes\",\"no\")","v":"yes"},"dms_MultiYear_ABC_RIN"]
[null,"Final year result for ABC multi year",{"$f":"IF(dms_MultiYear_Flag=1,C52,0)","v":"2022-23"}]
[]
[null,"EB RINS"]
[null,"Calendar Year for table 3.6 data",{"$f":"IFERROR(IF(dms_Segment=\"Transmission\",dms_Cal_Year_B4_CRY,CRY),\"CRY not present\")","v":"2014-15"},"dms_0306_Year","=IF(dms_Segment=\"Transmission\",dms_Cal_Year_B4_CRY,CRY)"]
[null,"CA RINS"]
[null,"Find how many rows in tables 6.3 sustained interruptions?",null,null,"dms_060301_MaxRows only returns a valid value when cover sheet is attached to a CA file"]
[null,null,{"$f":"IF(dms_Model<>\"CA\",\"not a CA\",\"Is a CA\")","v":"Is a CA"},null,"=IF(dms_Model<>\"CA\",\"not a CA\",\"Is a CA\")"]
[null,"dms_060301_Avg_Duration_Sustained_Int_Values present?",{"$f":"IFERROR(IF(INDEX(dms_060301_Avg_Duration_Sustained_Int_Values,1,1)<>\"\",\"yes\",\"no\"),\"no\")","v":"no"},"dms_060301_checkvalue","=IFERROR(IF(INDEX(dms_060301_Avg_Duration_Sustained_Int_Values,1,1)<>\"\",\"yes\",\"no\"),\"no\")"]
[null,null,{"$f":"IF(AND(dms_Model=\"CA\",(dms_060301_checkvalue=\"no\")),\"error - NR not present\",\"no errors\")","v":"error - NR not present"},null,"=IF(AND(dms_Model=\"CA\",(dms_060301_checkvalue=\"no\")),\"error - NR not present\",\"no errors\")"]
[null,"Table 6.3.1 - last row reference",{"$f":"IFERROR(IF(dms_Model=\"CA\",LOOKUP(2,1/(dms_060301_Avg_Duration_Sustained_Int_Values<>\"\"),(ROW(dms_060301_Avg_Duration_Sustained_Int_Values))),\"not a CA\"),\"6.3 not present\")","v":"6.3 not present"},"dms_060301_LastRow","=IFERROR(IF(dms_Model=\"CA\",LOOKUP(2,1/(dms_060301_Avg_Duration_Sustained_Int_Values<>\"\"),(ROW(dms_060301_Avg_Duration_Sustained_Int_Values))),\"not a CA\"),\"6.3 not present\")"]
[null,"Table 6.3.1 - max number rows",{"$f":"IFERROR(IF(dms_Model=\"CA\",(dms_060301_LastRow-15),\"not a CA\"),\"error\")","v":"error"},"dms_060301_MaxRows","=IFERROR(IF(dms_Model=\"CA\",(dms_060301_LastRow-15),\"not a CA\"),\"error\")"]
[null,"Table 6.6.3 - Public lighting repair - no. business days",{"$f":"INDEX(dms_663_List,MATCH(dms_TradingName,dms_TradingName_List))","v":5},"dms_663","=INDEX(dms_663_List,MATCH(dms_TradingName,dms_TradingName_List))"]
[null,"ARR or RESET RINS"]
[null,"How many rows in tables 6.1 or 6.7?  (leap year?)","insert dms_LeapYear NR if required",null,"'dms_LeapYear is used to determine dms_060701_Max_Rows BUT it is only found on worksheet 6.1 or 6.7 and the date value in the cell is used to determine whether it is a leap year"]
[null,"Is dms_LeapYear named range present?",{"$f":"IFERROR(IF(dms_LeapYear,\"yes\"),\"no\")","v":"no"}]
[null,"Table 6.7.1 - includes a leap year?",{"$f":"\nIFERROR(IF(MONTH(DATE(YEAR(dms_LeapYear),2,29))=2,\"is a leap year\",\"not a leap year\"),\n\"dms_LeapYear not present\")","v":"dms_LeapYear not present"},"dms_LeapYear_Result","=IFERROR(IF(MONTH(DATE(YEAR(dms_LeapYear),2,29))=2,\"is a leap year\",\"not a leap year\"),\"dms_LeapYear not present\")"]
[null,"MaxRows if Reset and leap year",{"$f":"IF(dms_LeapYear_Result=\"is a leap year\",1827,1826)","v":1826},"dms_060701_Reset_MaxRows","=IF(dms_LeapYear_Result=\"is a leap year\",1827,1826)",null,null,"number of days present in Reset RIN table"]
[null,"MaxRows if ARR and leap year",{"$f":"IF(dms_LeapYear_Result=\"is a leap year\",366,365)","v":365},"dms_060701_ARR_MaxRows","=IF(dms_LeapYear_Result=\"is a leap year\",366,365)",null,null,"number of days present in ARR RIN table"]
[null,"Table 6.7.1 - Max Rows (leap year/ non leap year)",{"$f":"IF(dms_Model=\"ARR\",dms_060701_ARR_MaxRows,IF(dms_Model=\"Reset\",dms_060701_Reset_MaxRows,\"not a relevant RIN type\"))","v":"not a relevant RIN type"},"dms_060701_MaxRows","=IF(dms_Model=\"ARR\",dms_060701_ARR_MaxRows,IF(dms_Model=\"Reset\",dms_060701_Reset_MaxRows,\"not a relevant RIN type\"))"]
[null,"How many columns in 6.7?   (4 or 5 feeder categories)",{"$f":"IF(dms_FifthFeeder_flag_NSP=\"NO\",\"This NSP has only 4 feeder categories\",\"This NSP has 5 feeder categories\")","v":"This NSP has only 4 feeder categories"}]
[null,"Table 6.7.1 - Last column (# of feeder categories > 4)",{"$f":"IF(dms_FifthFeeder_flag_NSP=\"NO\",10,12)","v":10},"dms_060701_MaxCols","=IF(dms_FifthFeeder_flag_NSP=\"NO\",8,10)"]
[null,"Table 6.7.1 - Number of offset rows",{"$f":"IF(dms_Model=\"ARR\",15,9)","v":9},"dms_060701_OffsetRows","=IF(dms_Model=\"ARR\",15,9)"]
[null,"Start date for telephone answering in 6.1 or 6.7?",null,null,"Using 060101 as naming standard not 060701 for start dates"]
[null,"Table 6.1.1 and 6.7.1 - Start Date as Text",{"$f":"IF(dms_SingleYearModel=\"yes\",(CONCATENATE(IF(LEN(CRY)=4,\"1-Jan-\",\"1-Jul-\"),LEFT(CRY,4))),(CONCATENATE(IF(LEN(PRCP_y4)=4,\"1-Jan-\",\"1-Jul-\"),LEFT(PRCP_y4,4))))","v":"1-Jul-2014"},"dms_060101_StartDateTxt","=IF(SUM(dms_SingleYear_Model)>1,(CONCATENATE(IF(LEN(CRY)=4,\"1-Jan-\",\"1-Jul-\"),LEFT(CRY,4))),(CONCATENATE(IF(LEN(CRCP_y4)=4,\"1-Jan-\",\"1-Jul-\"),LEFT(CRCP_y4,4))))"]
[null,"Table 6.1.1 and 6.7.1 - Start Date as Date Value",{"$f":"DATEVALUE(dms_060701_StartDateTxt)","v":41821},"dms_060101_StartDateVal","=DATEVALUE(dms_060701_StartDateTxt)"]
[null,"Does the NSP report MAIFI or MAIFIe","NO","dms_MAIFI_Flag"]
[null,"ARRs"]
[null,"How many rows in table 6.8?","insert dms_060801_StartCell NR if required",null,"dms_060801_StartCell is only found on worksheet 6.8 and is used to determine the starting date for the date range"]
[null,"Is dms_060801_StartCell named range present?","yes","Must be present for ARRs","=IFERROR(IF((ROW(dms_060801_StartCell)-1)=1,\"yes\",\"yes\"),\"no\")"]
[null,"Table 6.8 - Number of offset rows",12,"dms_0608_OffsetRows","=IFERROR(IF(dms_Model=\"ARR\",(ROW(dms_060801_StartCell)-1),\"not an ARR\"),\"6.8 error\")"]
[null,"Table 6.8 - Last row","0","dms_0608_LastRow","=IFERROR(IF(dms_060801_StartCell<>\"\",IF(dms_Model=\"ARR\",(LOOKUP(2,1/(dms_060801_01_Values<>\"\"),(ROW(dms_060801_01_Values)))),\"not an ARR\"),0),\"0\")"]
[null,"Table 6.8 - MaxRows",{"$f":"IFERROR(IF(dms_Model=\"ARR\",(MAX(0,dms_0608_LastRow-dms_0608_OffsetRows)),\"not an ARR\"),\"0\")","v":"not an ARR"},"dms_060801_MaxRows","=IFERROR(IF(dms_Model=\"ARR\",(MAX(0,dms_0608_LastRow-dms_0608_OffsetRows)),\"not an ARR\"),\"0\")"]
[null,"TNSP RESET RINS"]
[null,"Table 7.9.4 only appears in TNSPs Reset RIN"]
[null,"Table 7.9.4 - first year",{"$f":"LEFT(PRCP_y3,4)","v":"2017"},"dms_070904_Start_Year","=LEFT(PRCP_y3,4)"]
[]
[null,"MISC"]
[null,"Public lighting NSP?",{"$f":"INDEX(dms_Public_Lighting_List,MATCH(dms_TradingName,dms_TradingName_List))","v":"YES"},"dms_Public_Lighting","=INDEX(dms_Public_Lighting_List,MATCH(dms_TradingName,dms_TradingName_List))"]
[null,"CBD Feeder for this business",{"$f":"INDEX(dms_CBD_flag,MATCH(dms_TradingName,dms_TradingName_List))","v":"YES"},"dms_CBD_flag_NSP"]
[null,"Urban Feeder for this business",{"$f":"INDEX(dms_Urban_flag,MATCH(dms_TradingName,dms_TradingName_List))","v":"YES"},"dms_Urban_flag_NSP"]
[null,"Short rural Feeder for this business",{"$f":"INDEX(dms_ShortRural_flag,MATCH(dms_TradingName,dms_TradingName_List))","v":"YES"},"dms_ShortRural_flag_NSP"]
[null,"Long rural Feeder for this business",{"$f":"INDEX(dms_LongRural_flag,MATCH(dms_TradingName,dms_TradingName_List))","v":"YES"},"dms_LongRural_flag_NSP"]
[null,"Fifth Feeder Category (eg. TasNetworks (D))",{"$f":"INDEX(dms_FeederType_5_flag,MATCH(dms_TradingName,dms_TradingName_List))","v":"NO"},"dms_FifthFeeder_flag_NSP","=INDEX(dms_FeederType_5_flag,MATCH(dms_TradingName,dms_TradingName_List))"]
[]
[null,"DISCARD FILES"]
[null,"discard this record?","NO","dms_DISCARD","If record is to be discarded from DB set this flag to YES"]
[]
[null,"SUBSET FILES"]
[null,"Is this Submission File a Subset File","YES","dms_Partial"]
[]
[]
[null,"REGULATORY YEARS FOR MULTI RYE SUBMISSIONS"]
[null,"Multiple RYE flag","YES","dms_Multi_RYE_flag"]
[null,null,"Manually specify RYE","Named ranges to apply"]
[null,null,2015,"dms_RYE_01"]
[null,null,2016,"dms_RYE_02"]
[null,null,2017,"dms_RYE_03"]
[null,null,2018,"dms_RYE_04"]
[null,null,2019,"dms_RYE_05"]
[null,null,2020,"dms_RYE_06"]
[null,null,2021,"dms_RYE_07"]
[null,null,2022,"dms_RYE_08"]
[null,null,2023,"dms_RYE_09"]
[null,null,2024,"dms_RYE_10"]
[null,null,2025,"dms_RYE_11"]
[null,null,2026,"dms_RYE_12"]
[null,null,2027,"dms_RYE_13"]
[null,null,2028,"dms_RYE_14"]